Cogmind - Beta 11.1 @@@ ROGUE MODE // 2022.04.29 @ 21:35:57 Player: RNGesus Result: Destroyed by H-88 Terminator with Heavy Machine Gun Performance ------------- Evolutions (9) 4500 Regions Visited (38) 7600 Robots Destroyed (735) 3675 Value Destroyed (36148) 36148 Prototype IDs (89) 1780 Alien Tech Used (11) 2200 Bonus (30308) 30308 TOTAL SCORE: 86211 Bonus ------- Triggered Max Security 3000 High Alert Combat Kills 11983 Follower Combat Kills 7011 Met Data Miner 300 Destroyed Z-Imprinter 1000 Triggered Deep Caves Wall 500 Exposed GOLEM Chamber 500 Met Zhirov 300 Met Warlord at Base 500 MAIN.C Attacked Warlord 500 Warlord Defense Kill 1144 Scanned by Researcher 500 Met Sigix 2000 Activated Exoskeleton 3000 Friendly Fire -1930 Cogmind --------- Core Integrity 0/1600 Matter 166/300 Energy 100/100 System Corruption 17% Temperature Cool (0) Movement Core (50) Location -1/Access Parts ------- > --- POWER (2) -------- (None) > --- PROPULSION (6) --- (None) > --- UTILITY (15) ----- (None) > --- WEAPON (3) ------- (None) > --- INVENTORY (7) ---- Experimental Energy Well (600) Terrabomb Microwarp Drive EMDS Peak State ------------ > --- POWER ------------ Quantum Reactor > --- PROPULSION ------- Myomer Leg Biometal Leg Biometal Leg Enhanced Biometal Leg Enhanced Biometal Leg Assembled Alloy Leg > --- UTILITY ---------- Experimental Power Amplifier Experimental Cooling System Huge Storage Unit Experimental Energy Well Experimental Energy Well Assembled Biocell Array Experimental Optical Array Surveybot 24 Chip Experimental Targeting Computer Experimental Core Analyzer Experimental Reaction Control System Experimental Reaction Control System Centrium Light Armor Plating Heavy Regenerative Plating > --- WEAPON ----------- Sigix Sheargun Graviton Cannon Graviton Cannon > --- INVENTORY -------- Vortex Chain Reactor Experimental Energy Well Experimental Energy Well Centrium Light Armor Plating Graphene Brace Advanced Force Field Phase Redirector Transdimensional Reconstructor Navigation Efficiency Matrix Terrabomb Microwarp Drive Sigix Sheargun EMDS EMDS Long-range Phase Cannon Nova Cannon Core Cannon Graviton Cannon Graviton Cannon Neutron Missile Launcher GAL Module [Rating: 238] Favorites ----------- Power F-cell Engine Engine F-cell Engine Power Core Light Nuclear Core Reactor Assembled Flux Generator Propulsion Assembled Alloy Leg Treads Light Treads Leg Assembled Alloy Leg Wheel Armored Huge Wheel Hover Unit Improved Airjet Flight Unit Electron Diverter Utility Assembled Nanovents Device Assembled Nanovents Storage Assembled Biocell Array Processor Surveybot 24 Chip Hackware System Mapper Protection Assembled Alloy Armor Weapon Assembled Focal Cannon Energy Gun Lightning Gun Energy Cannon Assembled Focal Cannon Ballistic Gun Light Assault Rifle Ballistic Cannon Graviton Cannon Launcher Scatter Rocket Array Special Weapon RU-N14's Throwing Claymores Impact Weapon Makeshift Hammer Slashing Weapon Ripper Build | -11 -10 -10 -9 -9 -9 -8 -8 -8 -7 -7 -7 -7 -7 -7 -6 -6 -6 -6 -6 -6 -5 -5 -5 -5 -5 -4 -4 -4 -4 -4 -4 -4 -3 -3 -3 -3 -2 -1 ------- Run | Scr Mat Min Mat Min Exi Min Mat Sto Fac Was Fac Low Low Dat Pro Fac Low Low Zio Dee Pro Fac Upp Upp Zhi Pro Fac Was Fac Upp Upp War Pro Res Qua Sec Res Acc Slots Evolved 17 | . . . 2 . . . 2 . 2 . . . . . . 2 . . . . . 2 . . . . 2 . . . . . . 2 . . 2 1 Power 1 | . . . . . . . . . 1 . . . . . . . . . . . . . . . . . . . . . . . . . . . . . Propulsion 4 | . . . 1 . . . 1 . . . . . . . . . . . . . . . . . . . . . . . . . . . . . 1 1 Utility 11 | . . . 1 . . . 1 . 1 . . . . . . 2 . . . . . 2 . . . . 2 . . . . . . 2 . . . . Weapon 1 | . . . . . . . . . . . . . . . . . . . . . . . . . . . . . . . . . . . . . 1 . Parts Attached 480 | 6 3 3 28 2 . 5 37 18 11 2 16 2 12 . 6 44 4 3 4 31 17 11 1 1 2 7 1 2 15 5 3 10 2 27 30 81 13 15 Power 32 | 1 1 1 3 . . 1 1 1 1 . 2 . 2 . . 6 2 . . 3 1 . . . 1 . . . . . . . . . 1 3 . 1 Engine 20 | 1 1 1 3 . . 1 1 1 1 . 1 . 2 . . 4 2 . . 1 . . . . . . . . . . . . . . . . . . Core 1 | . . . . . . . . . . . 1 . . . . . . . . . . . . . . . . . . . . . . . . . . . Reactor 11 | . . . . . . . . . . . . . . . . 2 . . . 2 1 . . . 1 . . . . . . . . . 1 3 . 1 Propulsion 104 | 2 . . 8 . . 2 14 3 2 . 3 1 1 . . 13 . 1 . 4 2 5 . . . . . 2 5 . . 6 . 2 13 7 4 4 Treads 42 | 2 . . 8 . . 2 14 3 1 . 1 1 1 . . 5 . . . 2 . . . . . . . . . . . . . . 2 . . . Leg 51 | . . . . . . . . . . . . . . . . 5 . . . . 2 5 . . . . . 2 5 . . 4 . 2 11 7 4 4 Wheel 7 | . . . . . . . . . 1 . 1 . . . . 3 . 1 . 1 . . . . . . . . . . . . . . . . . . Hover 3 | . . . . . . . . . . . 1 . . . . . . . . 1 . . . . . . . . . . . 1 . . . . . . Flight 1 | . . . . . . . . . . . . . . . . . . . . . . . . . . . . . . . . 1 . . . . . . Utility 183 | 1 2 1 5 . . . 7 2 3 1 8 . 6 . 3 17 2 . . 13 9 3 1 . 1 6 1 . 7 4 2 2 1 12 14 41 5 3 Device 114 | . . 1 1 . . . 3 . . . 3 . 3 . 3 7 1 . . 6 9 2 1 . . 6 1 . 6 4 2 1 1 9 13 27 2 2 Storage 16 | 1 2 . 1 . . . . 1 . . 1 . . . . 1 . . . 2 . 1 . . 1 . . . 1 . . . . 1 . 2 1 . Processor 22 | . . . . . . . 1 . 3 . 2 . 1 . . 3 1 . . 2 . . . . . . . . . . . 1 . 1 1 5 1 . Hackware 3 | . . . . . . . . . . . . . . . . 1 . . . . . . . . . . . . . . . . . 1 . . . 1 Protection 28 | . . . 3 . . . 3 1 . 1 2 . 2 . . 5 . . . 3 . . . . . . . . . . . . . . . 7 1 . Artifact . | . . . . . . . . . . . . . . . . . . . . . . . . . . . . . . . . . . . . . . . Weapon 161 | 2 . 1 12 2 . 2 15 12 5 1 3 1 3 . 3 8 . 2 4 11 5 3 . 1 . 1 . . 3 1 1 2 1 13 2 30 4 7 Energy Gun 6 | . . . . . . . . . . . . . . . . 1 . . . . . . . . . . . . . . . . . 1 . 3 . 1 Energy Cannon 76 | . . . 5 1 . 1 7 6 3 . 3 . 2 . 2 7 . 1 3 7 2 3 . . . . . . 1 . . . . 5 . 16 . 1 Ballistic Gun 12 | 2 . 1 4 . . . 3 . . . . . 1 . . . . . . . . . . . . . . . . . . . . . . 1 . . Ballistic Cannon 5 | . . . . . . . . . . . . . . . . . . . . . . . . . . . . . . . . . . . . . 2 3 Launcher 45 | . . . 3 1 . 1 5 3 1 1 . 1 . . . . . 1 . 2 2 . . 1 . 1 . . 2 1 1 1 1 6 1 5 2 2 Special Weapon 10 | . . . . . . . . . . . . . . . . . . . . 2 1 . . . . . . . . . . 1 . 1 . 5 . . Impact Weapon 5 | . . . . . . . . 3 1 . . . . . . . . . 1 . . . . . . . . . . . . . . . . . . . Slashing Weapon 2 | . . . . . . . . . . . . . . . 1 . . . . . . . . . . . . . . . . . . . 1 . . . Piercing Weapon . | . . . . . . . . . . . . . . . . . . . . . . . . . . . . . . . . . . . . . . . Special Melee Weapon . | . . . . . . . . . . . . . . . . . . . . . . . . . . . . . . . . . . . . . . . Unidentified Prototypes 56 | . . . 1 . . . 2 1 . . 1 . 2 . . 2 . . . 8 . 1 . . 3 . . . . . . 5 . 7 4 15 3 1 Corrupted Parts 4 | . . . . . . . . . . . . . . . . . . . . . 3 . . . . . . . . . . . . . . . . 1 System Corruption 26 | . . . . . . . . . . . . . . . . . . . . . 21 . . . . . . . . . . . . . . . . 5 Parts Lost 147 | . 1 2 4 . . 4 5 1 . 3 2 1 2 . 4 20 . 1 . 6 8 . . . . 5 2 1 13 . . . . 10 7 18 1 26 Power 20 | . 1 1 1 . . 1 . . . 1 . 1 1 . 2 3 . . . . 1 . . . . . . . 1 . . . . 1 1 1 . 3 Propulsion 33 | . . . 2 . . 2 2 . . 1 1 . . . 1 5 . 1 . 3 3 . . . . . . . 2 . . . . 3 1 . . 6 Utility 71 | . . . 1 . . . 3 1 . . . . 1 . 1 7 . . . 3 3 . . . . 5 1 1 8 . . . . 5 4 15 . 12 Weapon 23 | . . 1 . . . 1 . . . 1 1 . . . . 5 . . . . 1 . . . . . 1 . 2 . . . . 1 1 2 1 5 Highest Loss Streak 19 | . 1 1 1 . . 3 2 1 . 3 1 1 2 . 4 6 . 1 . 3 7 . . . . 2 1 1 4 . . . . 9 3 5 1 19 To Critical Strikes 2 | . . 1 . . . . . . . . . . . . . . . . . . . . . . . 1 . . . . . . . . . . . . Average Slot Usage (%) 90 | . 85 93 98 100 100 98 97 99 94 82 78 89 83 78 75 86 93 93 91 90 86 88 88 88 79 87 89 89 87 90 90 89 90 86 89 89 91 75 Engine 4 | . 14 13 10 11 11 11 9 9 14 13 7 4 5 14 5 4 8 12 12 6 5 . . . . . . . . . . . . . . . . . Reactor 3 | . . . . . . . . . . . . . . . . 7 3 . . 5 6 7 5 5 4 5 5 5 4 5 5 5 5 3 3 4 8 3 Treads 10 | . 28 28 32 33 33 31 33 35 21 12 2 14 14 14 9 5 12 12 12 10 . . . . . . . . . . . . . . . . . . Leg 9 | . . . . . . . . . . . . . . . . 7 . . . . 3 19 22 22 22 22 20 19 19 20 20 19 20 15 17 17 19 15 Wheel 1 | . . . . . . . . . 3 7 7 7 7 7 7 5 6 6 6 6 9 1 . . . . . . . . . . . . . . . . Device 18 | . . 8 11 11 11 11 16 9 7 7 7 15 11 14 14 16 25 25 25 12 12 22 22 22 18 23 33 30 28 30 30 31 30 23 25 23 12 13 Storage 9 | . 14 14 11 11 11 11 9 9 7 5 4 7 7 7 7 6 6 6 6 7 11 9 11 11 11 11 10 10 10 10 10 10 10 12 13 13 12 12 Processor 10 | . . . . . . . 1 9 15 15 18 15 14 14 14 11 15 18 18 18 24 12 11 11 11 9 5 5 5 5 5 5 10 12 11 14 18 12 Protection 6 | . . . 10 11 11 11 9 9 6 5 4 . 5 7 3 7 2 . . 8 . 3 5 5 5 5 6 10 9 10 10 8 5 5 4 7 11 6 Energy Cannon 10 | . . . 16 21 22 19 17 17 12 8 13 12 6 . 9 10 12 11 10 10 7 9 11 8 5 11 9 10 9 9 9 9 7 7 9 7 5 . Ballistic Gun 1 | . 28 28 4 . . . . . . . . . . . . . . . . . . . . . . . . . . . . . . . . . . . Naked Turns 14 | . . . . . . . . . . . . . . . . . . . . . . . . . . . . . . . . . . . . . . 14 Heaviest Build 205 | 13 28 28 71 71 71 72 73 114 127 123 60 53 61 54 62 107 99 88 88 94 84 120 124 124 124 127 127 127 127 131 131 129 124 163 181 185 188 205 Greatest Support 171 | 40 40 40 60 60 60 60 80 80 88 28 56 28 28 28 28 55 28 28 28 56 56 116 116 116 116 136 136 136 136 133 133 140 140 140 140 120 140 171 Greatest Overweight (x) 10 | . . . 1 1 1 1 1 1 4 4 2 1 2 1 2 10 3 3 3 3 2 3 1 1 1 1 1 1 1 . . 1 . 3 2 1 1 2 Average Overweight (x) 1 | . . . . 1 1 . . . 2 3 . 1 1 1 1 3 3 3 2 2 1 1 1 1 . . . . . . . . . . 1 . 1 . Largest Inventory Capacity 27 | 8 15 15 20 20 20 20 20 25 25 25 15 15 15 15 15 20 20 20 20 20 20 20 20 20 20 20 20 20 20 20 20 20 20 25 25 27 27 27 Average Capacity 20 | 7 11 15 19 20 20 20 20 21 25 22 10 15 15 15 15 18 20 20 20 20 20 20 20 20 20 20 20 20 20 20 20 20 20 21 25 25 27 25 Most Carried 27 | 2 11 12 20 20 20 20 20 23 25 25 15 15 15 15 15 20 20 20 20 20 20 20 20 19 20 20 19 20 20 20 18 20 20 24 25 27 27 27 Average Carried 19 | 1 8 10 18 20 20 19 19 20 24 21 8 15 14 15 14 14 19 18 19 19 19 18 19 18 19 19 18 18 19 18 17 18 19 20 24 24 26 23 Final Capacity 27 | 8 15 15 20 20 20 20 20 25 25 5 15 15 15 15 15 20 20 20 20 20 20 20 20 20 20 20 20 20 20 20 20 20 20 25 25 27 27 7 Final Carried 27 | 2 11 10 20 20 20 16 20 23 25 5 15 15 15 15 15 19 20 19 20 20 16 20 19 18 20 19 19 19 20 18 18 19 19 24 23 27 27 6 Class Distribution -------------------- 38% | Mutant 24% | Golem 19% | Scavenger-Mutant 5% | Skirmisher 5% | Hacker-Golem Dominant Class ---------------- Mutant | -10/Materials Mutant | -10/Mines Mutant | -9/Materials Mutant | -9/Mines Mutant | -9/Exiles Mutant | -8/Mines Scavenger-Mutant | -8/Materials Mutant | -8/Storage Mutant | -7/Factory Mutant | -7/Waste Mutant | -7/Factory Mutant | -7/Lower Caves Mutant | -7/Lower Caves Scavenger-Mutant | -7/Data Miner Mutant | -6/Proximity Caves Scavenger-Mutant | -6/Factory Skirmisher | -6/Lower Caves Skirmisher | -6/Lower Caves Skirmisher | -6/Zion Mutant | -6/Deep Caves Mutant | -5/Proximity Caves Golem | -5/Factory Golem | -5/Upper Caves Golem | -5/Upper Caves Golem | -5/Zhirov Golem | -4/Proximity Caves Golem | -4/Factory Golem | -4/Waste Golem | -4/Factory Golem | -4/Upper Caves Golem | -4/Upper Caves Golem | -4/Warlord Golem | -3/Proximity Caves Golem | -3/Research Hacker-Golem | -3/Quarantine Scavenger-Mutant | -3/Section 7 Scavenger-Mutant | -2/Research Scavenger-Mutant | -1/Access Resources | -11 -10 -10 -9 -9 -9 -8 -8 -8 -7 -7 -7 -7 -7 -7 -6 -6 -6 -6 -6 -6 -5 -5 -5 -5 -5 -4 -4 -4 -4 -4 -4 -4 -3 -3 -3 -3 -2 -1 ----------- Run | Scr Mat Min Mat Min Exi Min Mat Sto Fac Was Fac Low Low Dat Pro Fac Low Low Zio Dee Pro Fac Upp Upp Zhi Pro Fac Was Fac Upp Upp War Pro Res Qua Sec Res Acc Matter Collected 9804 | 219 270 47 477 53 . 49 711 250 122 . 278 45 287 . 86 437 79 87 78 676 364 241 14 34 . 468 10 26 291 84 124 160 40 700 341 1084 198 1374 Remotely . | . . . . . . . . . . . . . . . . . . . . . . . . . . . . . . . . . . . . . . . Salvage Created 37362 | . 590 90 1864 155 . 246 1780 1235 1102 . 420 115 56 . 380 2786 230 262 . 1797 609 1114 319 . . 996 724 1707 1849 262 144 418 282 3734 1814 6335 989 2958 Parts 1609 | . 49 7 113 12 . 22 95 65 45 . 25 9 3 . 10 87 9 8 . 19 16 57 10 . . 45 43 39 81 12 6 13 13 190 90 284 35 97 Haulers Intercepted 23 | . 1 . 4 . . . 2 1 2 . . . . . . 5 . . . . . 1 . . . . . . 3 . . . . 1 1 1 . 1 Recyclers Shooed 9 | . . 1 . 2 . . 1 . . . 1 . . . . 2 . . . . . . . . . . . . . . . . . 1 . . . 1 Parts Field Recycled . | . . . . . . . . . . . . . . . . . . . . . . . . . . . . . . . . . . . . . . . Retrieved Matter . | . . . . . . . . . . . . . . . . . . . . . . . . . . . . . . . . . . . . . . . Parts Self-Destructed 224 | . . . . . . . . . . . . 9 . . 13 . 13 5 . . 10 . 10 2 . 52 . . . 11 . 88 11 . . . . . Prevented 30 | . . . . . . . . . . . . . 4 . . . . . . . . . . . . 4 . . . . . 22 . . . . . . Kills | -11 -10 -10 -9 -9 -9 -8 -8 -8 -7 -7 -7 -7 -7 -7 -6 -6 -6 -6 -6 -6 -5 -5 -5 -5 -5 -4 -4 -4 -4 -4 -4 -4 -3 -3 -3 -3 -2 -1 ------- Run | Scr Mat Min Mat Min Exi Min Mat Sto Fac Was Fac Low Low Dat Pro Fac Low Low Zio Dee Pro Fac Upp Upp Zhi Pro Fac Was Fac Upp Upp War Pro Res Qua Sec Res Acc Combat Hostiles Destroyed 657 | . 16 2 40 6 . 11 35 27 19 . 9 8 2 . 9 36 7 7 . 58 16 18 5 . . 15 14 6 25 7 3 8 9 52 24 107 11 45 Melee 7 | . . . . . . . . . . . . . . . 2 3 . . . . . . . . . . . . . . . . . . . . 1 1 Guns 28 | . 16 2 8 . . . 2 . . . . . . . . . . . . . . . . . . . . . . . . . . . . . . . Cannons 350 | . . . 24 3 . 3 19 18 13 . 9 1 . . 7 27 6 . . 6 2 18 5 . . 12 14 6 22 3 . 3 1 20 24 50 4 30 AOE 244 | . . . 8 3 . 8 14 8 3 . . 7 1 . . . . 7 . 43 13 . . . . 3 . . 3 4 3 5 8 31 . 52 6 14 Classes Destroyed 30 | . 5 . 6 . . . 3 1 1 . . . . . . . . . . 4 . . . . . 1 . 2 . . . 2 . 3 . 2 . . Worker 25 | . . . 1 1 . . . 2 . . . . . . . 2 . . . . . 1 . . . . . . 1 . . . . 10 2 2 3 . Builder 23 | . 1 . . . . 2 1 . . . . . . . . 1 . . . . . . . . . . . . 1 . . . . 12 . 2 3 . Tunneler 7 | . . . 1 . . . 2 . . . . . . . . . . . . . . . . . . . . . . . . . . 3 . . . 1 Hauler 23 | . 1 . 4 . . . 2 1 2 . . . . . . 5 . . . . . 1 . . . . . . 3 . . . . 1 1 1 . 1 Recycler 20 | . . . . . . . 4 . 1 . . . . . . 3 . . . . . . . . . . . . 1 . . . . 7 . . . 4 Carrier 1 | . . . . . . . . . . . . . . . . . . . . . . . . . . . . . . . . . . . . 1 . . Mechanic 15 | . . . 1 . . . . 1 . . . . . . . . . . . . 1 . . . . . . . . . . . . 1 . 8 . 3 Operator 8 | . 1 . 2 . . . 1 . . . . . . . . 1 . . . . . . . . . . . . . . . . . . . 3 . . Watcher 7 | . . . . . . . . 1 1 . 1 . . . . . . . . . . . . . . 2 . . . . . . . 2 . . . . Swarmer 116 | . 6 . 3 3 . 6 6 4 3 . 4 6 1 . 4 8 6 . . . 6 3 . . . 5 5 . 4 4 . 2 8 9 . 10 . . Saboteur 9 | . . . . . . . . . . . . . . . . . . . . . . . . . . . . . . . . . . 1 . 3 1 4 Grunt 217 | . 10 2 25 2 . 5 15 13 11 . 2 2 . . 2 13 . 6 . . 6 4 5 . . 2 3 . 11 3 3 1 . 14 3 37 4 13 Brawler 18 | . . . 1 1 . . 1 . . . . . . . . 1 . 1 . . 2 . . . . . . . . . . 1 . . 1 3 2 4 Duelist 21 | . . . 2 . . . 2 . . . . . . . 2 . . . . . 2 . . . . . . . . . . 1 . . 1 5 . 6 Protector 8 | . . . . . . . . . . . . . . . . . . . . . . . . . . . . . . . . . . 1 . 5 1 1 Sentry 62 | . . . 9 . . . 9 10 2 . 1 . . . 1 4 . . . . . 1 . . . 5 2 . 4 . . . . 3 . 8 2 1 Demolisher 1 | . . . . . . . . . . . . . . . . . . . . . . . . . . . . . . . . . . . . 1 . . Specialist 1 | . . . . . . . . . . . . . . . . . . . . . . . . . . . . . . . . . . 1 . . . . Hunter 33 | . . . . . . . 1 . 1 . . . 1 . . 3 1 . . . . . . . . 2 . . . . . 1 . 10 4 6 . 3 Programmer 80 | . . . . . . . . . 2 . 2 . . . . 7 . . . . . 10 . . . . 4 . 6 . . . . 12 13 19 1 4 Heavy 1 | . . . . . . . 1 . . . . . . . . . . . . . . . . . . . . . . . . . . . . . . . Behemoth 3 | . . . . . . . . . . . . . . . . . . . . . . . . . . 1 . . . . . . 1 . . 1 . . Compactor 6 | . . . . . . . . . . . . . . . . . . . . . . . . . . . . 6 . . . . . . . . . . S7 Guard 2 | . . . . . . . . . . . . . . . . . . . . . . . . . . . . . . . . . . . . 2 . . Lightning 2 | . . . . . . . . . . . . . . . . . . . . . . . . . . . . . . . . . . . 2 . . . Investigator 2 | . . . . . . . . . . . . . . . . . . . . . . . . . . . . . . . . . . . . 1 1 . Striker 9 | . . . . . . . . . . . . . . . . . . . . . . . . . . . . . . . . 1 . . . 4 . 4 Executioner 10 | . . . . . . . . . . . . . . . . . . . . . . . . . . . . . . . . 1 . 1 . 3 . 5 Z-Light 7 | . . . . . . . . . . . . . . . . . . . . 7 . . . . . . . . . . . . . . . . . . Packrat 1 | . . . . . . . . . . . . . . . . . . . . . 1 . . . . . . . . . . . . . . . . . Assembler 2 | . . . . . . . . . . . . . . . . . . . . 2 . . . . . . . . . . . . . . . . . . Assembled 41 | . . . . . . . . . . . . . . . . . . . . 41 . . . . . . . . . . . . . . . . . . Golem 9 | . . . . . . . . . . . . . . . . . . . . 9 . . . . . . . . . . . . . . . . . . Wasp 1 | . . . . . . . . . . . . . . . . . . . . . . . . . . . . 1 . . . . . . . . . . Thug 1 | . . . . . . . . . . . . . . . . . . . . . . . . . . . . . . . . . . . . . . 1 Martyr 2 | . . . . . . . . . . . . . . . . . . . . . . . . . . . . 2 . . . . . . . . . . Best Kill Streak 39 | . 4 2 8 3 . 6 10 6 3 . 5 8 1 . 6 4 4 7 . 39 8 5 3 . . 4 5 2 5 4 3 8 4 25 3 26 8 16 Combat Bots Only 37 | . 3 2 6 3 . 6 8 5 3 . 4 8 1 . 6 3 4 7 . 37 7 5 3 . . 4 5 2 5 4 3 8 4 13 3 20 6 14 Max Kills in Single Turn 24 | . 2 1 3 2 . 2 3 3 3 . 1 2 1 . 1 1 1 3 . 24 5 1 1 . . 4 2 1 3 4 2 3 4 12 1 6 7 5 Gunslinging 1 | . 1 . . . . . . . . . . . . . . . . . . . . . . . . . . . . . . . . . . . . . Exploded 24 | . . . 2 2 . 2 2 2 3 . . 2 1 . . . . 3 . 24 5 . . . . 3 . . 2 4 2 3 4 4 . 6 6 3 Melee 1 | . . . . . . . . . . . . . . . 1 1 . . . . . . . . . . . . . . . . . . . . 1 1 Uniques/NPCs Destroyed 1 | . . . . . . . . . . . . . . . . . . . . 1 . . . . . . . . . . . . . . . . . . Z-Imprinter (-6/Deep Caves) Combat | -11 -10 -10 -9 -9 -9 -8 -8 -8 -7 -7 -7 -7 -7 -7 -6 -6 -6 -6 -6 -6 -5 -5 -5 -5 -5 -4 -4 -4 -4 -4 -4 -4 -3 -3 -3 -3 -2 -1 -------- Run | Scr Mat Min Mat Min Exi Min Mat Sto Fac Was Fac Low Low Dat Pro Fac Low Low Zio Dee Pro Fac Upp Upp Zhi Pro Fac Was Fac Upp Upp War Pro Res Qua Sec Res Acc Damage Taken 39075 | . 417 251 1162 148 . 460 2159 1102 813 234 564 388 145 . 652 3358 277 276 . 1082 930 748 456 . . 596 628 523 3195 190 69 199 325 3082 2714 4818 666 6448 Core 4951 | . 36 36 151 9 . 77 236 72 74 89 26 64 12 . 39 358 34 60 . 135 70 74 16 . . 32 70 87 390 . . 30 . 441 301 449 74 1409 Absorbed by Shields 4287 | . . . . . . . . . . . . . . . . 499 192 54 . 258 110 62 . . . 390 . . . . . 121 . . 671 216 141 1573 Redirected to Shielding 240 | . . . . . . . . . . . . . . . . . . . . 240 . . . . . . . . . . . . . . . . . . Regen/Repaired (Parts) 2212 | . . . . . . . 205 285 497 . . . . . . . . . . . . 115 . . . 17 11 . . . . . . . . 130 492 460 Core Remaining (%) 59 | 100 . 71 . . . 40 . 44 . . . . . . 56 . . . . . 22 . . . . 87 . . . . . . 49 . . 29 94 . Volleys Fired 1657 | . 51 11 114 13 . 20 87 74 55 4 40 11 9 . 17 144 19 5 . 67 32 53 16 3 . 46 33 43 96 10 6 10 14 77 106 238 36 97 Largest 3 | . 2 2 2 2 . 2 2 2 2 2 2 1 1 . 2 2 2 2 . 2 1 2 2 2 . 2 2 2 2 2 1 2 1 2 2 2 2 3 Hottest 370 | . 40 40 120 120 . 120 120 120 140 119 155 75 75 . 150 170 70 70 . 144 75 133 50 50 . 75 50 50 123 50 49 50 49 218 50 226 218 370 Shots Fired 2768 | . 102 22 205 23 . 28 152 143 107 7 46 11 10 . 25 268 38 7 . 109 32 67 32 6 . 90 59 86 150 19 6 17 14 126 185 348 45 183 Gun 237 | . 102 22 82 . . . 24 . . . . . . . . 5 . . . . . . . . . . . . . . . . . . . . . 2 Cannon 2355 | . . . 114 20 . 20 113 138 106 4 46 3 7 . 25 263 38 3 . 94 25 67 32 6 . 89 59 86 147 18 3 15 12 106 185 314 41 156 Launcher 142 | . . . 9 3 . 8 15 5 1 3 . 8 3 . . . . 4 . 6 6 . . . . 1 . . 3 1 3 2 2 18 . 12 4 25 Special 34 | . . . . . . . . . . . . . . . . . . . . 9 1 . . . . . . . . . . . . 2 . 22 . . Kinetic 392 | . 102 22 82 . . . 24 . . . . . . . . . . . . . . . . . . . . . . . . . . . . . 12 150 Thermal 2072 | . . . 114 20 . 20 113 138 106 4 40 3 2 . 25 263 38 3 . 16 10 67 32 6 . 89 59 86 147 18 3 15 12 97 185 306 29 6 Explosive 148 | . . . 9 3 . 8 15 5 1 3 . 8 3 . . . . 4 . 15 6 . . . . 1 . . 3 1 3 2 2 20 . 24 . 12 Electromagnetic 149 | . . . . . . . . . . . 6 . 5 . . 5 . . . 78 15 . . . . . . . . . . . . 9 . 14 4 13 Slashing 2 | . . . . . . . . . . . . . . . . . . . . . . . . . . . . . . . . . . . . . . 2 Robot Hit Streak 43 | . 13 17 22 5 . 6 12 16 18 5 13 13 5 . 13 14 6 2 . 16 7 17 13 . . 23 11 30 25 13 . 15 12 43 19 41 25 13 Robot Miss Streak 12 | . 2 2 6 1 . 2 3 3 2 1 3 1 . . 3 6 4 6 . 3 12 2 2 . . 3 1 2 2 1 . 1 1 2 3 4 1 6 Penetration Max 3 | . . . . . . . . . . . . . . . . . . . . . . . . . . . . . . . . . . . . . . 3 Secondary Targets 1 | . 1 . . . . . . . . . . . . . . . . . . . . . . . . . . . . . . . . . . . . . Max Gunslinging Chain 1 | . 1 . . . . . . . . . . . . . . . . . . . . . . . . . . . . . . . . . . . . . Shots Hit Robots 1834 | . 76 16 140 12 . 17 100 85 76 5 36 5 4 . 22 197 18 3 . 70 18 50 19 . . 63 39 63 109 13 . 9 12 89 126 200 33 109 Core Hits 1449 | . 31 7 69 9 . 20 65 45 35 . 16 15 2 . 12 69 7 24 . 159 59 26 8 . . 35 19 19 48 8 6 13 10 129 49 255 59 121 Critical Kills 16 | . . . . . . . 1 . 2 . . . . . . 5 . . . . . . . . . . . . . . . . . . . 4 . 4 Critical Parts Destroyed 7 | . . . . . . . . . . . . . . . . . . . . . . . . . . . . . . . . . . . . . . 7 Critical Strikes 47 | . . . . . . . 1 . 2 . . . . . . 9 . . . 3 1 . . . . . . . . . . . . 3 . 7 . 21 Burn 3 | . . . . . . . . . . . . . . . . . . . . . . . . . . . . . . . . . . 3 . . . . Meltdown 12 | . . . . . . . 1 . 2 . . . . . . 5 . . . . . . . . . . . . . . . . . . . 4 . . Destroy 11 | . . . . . . . . . . . . . . . . . . . . . . . . . . . . . . . . . . . . . . 11 Blast 10 | . . . . . . . . . . . . . . . . . . . . . . . . . . . . . . . . . . . . . . 10 Corrupt 5 | . . . . . . . . . . . . . . . . . . . . 3 1 . . . . . . . . . . . . . . 1 . . Sever 6 | . . . . . . . . . . . . . . . . 4 . . . . . . . . . . . . . . . . . . . 2 . . Melee Attacks 41 | . . . . . . . . 5 1 . . . . . 6 26 . . 3 . . . . . . . . . . . . . . . . . . . Impact 9 | . . . . . . . . 5 1 . . . . . . . . . 3 . . . . . . . . . . . . . . . . . . . Slashing 32 | . . . . . . . . . . . . . . . 6 26 . . . . . . . . . . . . . . . . . . . . . . Piercing . | . . . . . . . . . . . . . . . . . . . . . . . . . . . . . . . . . . . . . . . Sneak Attacks 2 | . . . . . . . . . . . . . . . . 2 . . . . . . . . . . . . . . . . . . . . . . Combat Hostiles . | . . . . . . . . . . . . . . . . . . . . . . . . . . . . . . . . . . . . . . . Follow-up Attacks . | . . . . . . . . . . . . . . . . . . . . . . . . . . . . . . . . . . . . . . . Damage Inflicted 113280 | . 874 132 3330 435 . 1087 3785 2839 2020 396 937 905 195 . 586 6212 582 882 . 6187 2281 2334 870 . . 2967 1916 3074 5930 1218 585 1282 1314 13100 6268 22659 3431 12667 Guns 2031 | . 874 132 577 . . . 371 . . . . . . . . 62 . . . . . . . . . . . . . . . . . . . . . 15 Cannons 63014 | . . . 1880 271 . 367 1778 1987 1838 74 935 50 105 . 475 5276 582 31 . 1826 437 2334 870 . . 2824 1916 3074 5049 605 . 403 497 3746 6268 8266 1498 7752 Explosions 46401 | . . . 873 164 . 720 1629 852 182 322 . 855 90 . . . . 851 . 4178 1844 . . . . 143 . . 881 613 585 879 817 9354 . 13736 1933 4900 Melee 949 | . . . . . . . . . . . . . . . 111 838 . . . . . . . . . . . . . . . . . . . . . . Ramming 45 | . . . . . . . 7 . . . 2 . . . . 36 . . . . . . . . . . . . . . . . . . . . . . Kinetic 7825 | . 874 132 577 . . . 371 . . . . . . . . . . . . . . . . . . . . . . . . . . . . . 529 5342 Thermal 56199 | . . . 1880 271 . 367 1778 1987 1838 74 823 50 52 . 475 5276 582 31 . 362 . 2334 870 . . 2824 1916 3074 5049 605 118 403 497 4203 6268 8428 969 2795 Explosive 41713 | . . . 873 164 . 720 1629 852 182 322 . 855 38 . . . . 851 . 4105 1844 . . . . 143 . . 881 613 467 879 817 8530 . 12518 1341 3089 Electromagnetic 5694 | . . . . . . . . . . . 112 . 105 . . 62 . . . 1537 437 . . . . . . . . . . . . 367 . 1056 592 1426 Impact . | . . . . . . . . . . . . . . . . . . . . . . . . . . . . . . . . . . . . . . . Slashing 1804 | . . . . . . . . . . . . . . . 111 838 . . . 183 . . . . . . . . . . . . . . . 657 . 15 Piercing . | . . . . . . . . . . . . . . . . . . . . . . . . . . . . . . . . . . . . . . . Highest Corruption 26 | . . . . . . . . . 1 11 13 8 8 8 8 5 5 5 5 . 26 2 2 2 2 2 2 5 9 9 9 9 . 1 7 16 . 17 Average Corruption 5 | . . . . . . . . . 1 7 11 8 8 8 8 2 5 5 5 . 14 1 2 2 2 2 1 3 5 9 9 9 . 1 3 10 . 8 Corruption Purged 5 | . . . . . . . . . . . 5 . . . . . . . . . . . . . . . . . . . . . . . . . . . Corruption Blocked 22 | . . . . . . . . . . . . . . . . . . . . . . . . . . . . . . . . 8 . . 14 . . . Effects 549 | . . . . . . . . . 10 7 39 11 22 . 19 28 18 12 . . 10 1 6 5 6 21 4 14 44 12 13 3 . 3 45 173 . 23 Message Errors 123 | . . . . . . . . . 2 1 12 2 4 . 6 5 4 5 . . 2 1 3 1 . 10 1 4 7 4 4 1 . 2 7 33 . 2 Matter Fused 129 | . . . . . . . . . 3 . 11 2 5 . 6 5 8 2 . . 2 . 3 1 1 3 . 2 12 2 3 2 . . 10 44 . 2 Heat Flow Errors 64 | . . . . . . . . . 1 . 2 2 6 . . 2 . 1 . . 2 . . . . 2 . 4 8 2 2 . . . 8 19 . 3 Energy Discharges 71 | . . . . . . . . . . . 5 2 2 . 3 6 1 2 . . 2 . . 1 2 2 1 1 3 1 2 . . . 6 26 . 3 Parts Rejected 8 | . . . . . . . . . . . . . . . . 1 . . . . . . . . . . . . 3 . . . . . 2 2 . . Data Loss (minor) 60 | . . . . . . . . . 3 3 4 3 3 . 1 2 3 1 . . . . . 2 2 1 1 2 2 2 2 . . . 4 18 . 1 Data Loss (major) 28 | . . . . . . . . . 1 1 2 . 1 . 2 2 . . . . 1 . . . . 1 1 1 2 1 . . . . 2 7 . 3 Misfires 23 | . . . . . . . . . . . . . 1 . . 3 1 1 . . . . . . . 1 . . 3 . . . . 1 1 10 . 1 Alerts 15 | . . . . . . . . . . 1 1 . . . . 2 . . . . 1 . . . 1 . . . 1 . . . . . 2 5 . 1 Misdirections 5 | . . . . . . . . . . . 1 . . . . . . . . . . . . . . . . . . . . . . . . 1 . 3 Weapon Failures 23 | . . . . . . . . . . 1 1 . . . 1 . 1 . . . . . . . . 1 . . 3 . . . . . 3 8 . 4 Overload Shots . | . . . . . . . . . . . . . . . . . . . . . . . . . . . . . . . . . . . . . . . Overflow Damage 4610 | . . . 23 6 . 28 112 17 10 . 12 34 . . . 279 . . . 199 91 103 65 . . 65 17 17 219 39 49 . 32 830 299 672 102 1290 Projectiles 2666 | . . . 3 6 . . 18 . 10 . 12 . . . . 162 . . . 81 30 103 65 . . 61 17 17 193 17 . . . 62 299 294 92 1124 Explosions 1827 | . . . 20 . . 28 94 17 . . . 34 . . . . . . . 118 61 . . . . 4 . . 26 22 49 . 32 768 . 378 10 166 Melee 117 | . . . . . . . . . . . . . . . . 117 . . . . . . . . . . . . . . . . . . . . . . Knockbacks 35 | . . . . . . . . . . . . . . . . . . . . . . . . . . . . . . . . . . . . . . 35 Impact . | . . . . . . . . . . . . . . . . . . . . . . . . . . . . . . . . . . . . . . . Kinetic 33 | . . . . . . . . . . . . . . . . . . . . . . . . . . . . . . . . . . . . . . 33 Secondary 2 | . . . . . . . . . . . . . . . . . . . . . . . . . . . . . . . . . . . . . . 2 Self-Inflicted Damage 1280 | . . . 30 32 . 101 43 248 . 51 1 85 . . . 18 . 168 . . 299 . . . . . . . . . . . . 86 . . 67 51 Shots 40 | . . . 2 1 . 3 2 4 . 1 . 3 . . . . . 7 . . 11 . . . . . . . . . . . . 2 . . 1 3 Rammed 5 | . . . . . . . 1 . . . 1 . . . . 3 . . . . . . . . . . . . . . . . . . . . . . Targets Rammed 5 | . . . . . . . 1 . . . 1 . . . . 3 . . . . . . . . . . . . . . . . . . . . . . Kicked . | . . . . . . . . . . . . . . . . . . . . . . . . . . . . . . . . . . . . . . . Crushed . | . . . . . . . . . . . . . . . . . . . . . . . . . . . . . . . . . . . . . . . Highest Temperature 536 | . 18 27 63 9 . 18 369 46 369 18 241 176 230 . 459 166 . 237 . 318 181 40 . . . 171 . 206 219 233 83 . . 60 206 536 22 198 Average Temperature 66 | . 7 12 11 4 . 4 97 16 87 9 71 89 85 . 173 26 . 145 . 97 36 25 . . . 88 . 112 87 106 45 . . 30 73 81 7 58 Received Heat Transfer 6739 | . 189 117 504 12 . 117 873 351 348 . 63 63 . . 141 719 . 66 . 171 154 79 204 . . 78 147 . 692 137 30 . 18 352 95 618 102 299 Effects 9 | . . . . . . . 1 . 1 . . . . . 2 . . . . . . . . . . . . . . . . . . . . 5 . . Shutdowns 3 | . . . . . . . 1 . . . . . . . 1 . . . . . . . . . . . . . . . . . . . . 1 . . Energy Bleed 2 | . . . . . . . . . 1 . . . . . 1 . . . . . . . . . . . . . . . . . . . . . . . Interference 3 | . . . . . . . . . . . . . . . . . . . . . . . . . . . . . . . . . . . . 3 . . Short Circuit 1 | . . . . . . . . . . . . . . . . . . . . . . . . . . . . . . . . . . . . 1 . . Siege Activations . | . . . . . . . . . . . . . . . . . . . . . . . . . . . . . . . . . . . . . . . Robots Corrupted 13 | . . . . . . . . . . . . . 1 . . . . . . 9 1 . . . . . . . . . . . . . . 1 . 1 Combat Hostiles 12 | . . . . . . . . . . . . . 1 . . . . . . 9 1 . . . . . . . . . . . . . . 1 . . Parts Fried 17 | . . . . . . . . . . . 2 . 1 . . . . . . 1 . . . . . . . . . . . . . . . 4 . 9 Impact Corruptions . | . . . . . . . . . . . . . . . . . . . . . . . . . . . . . . . . . . . . . . . Robots Melted 22 | . . . . . . . 1 1 3 . . . . . . 11 1 . . . . . . . . . . . . . . . . 1 . 4 . . Combat Hostiles 16 | . . . . . . . . 1 3 . . . . . . 6 1 . . . . . . . . . . . . . . . . 1 . 4 . . Parts Melted 124 | . . . 2 1 . . 4 6 13 . 4 . . . 3 37 3 . . 1 . 5 1 . . . 2 . 2 1 . . . 21 . 17 1 . Heat Transferred 50611 | . . . 2849 407 . 592 2886 3182 3163 150 1435 74 50 . 703 9137 900 50 . 500 . 1750 475 . . 1523 1025 1675 2925 325 100 225 275 3450 3006 6467 962 350 Parts Sabotaged 5 | . . . . . . . . . . . . . . . . . . . . . . . . . . . . . . . . . . . . . 2 3 Parts Stolen . | . . . . . . . . . . . . . . . . . . . . . . . . . . . . . . . . . . . . . . . Parts Stripped . | . . . . . . . . . . . . . . . . . . . . . . . . . . . . . . . . . . . . . . . Power Chain Reactions 17 | . . . . . . . . . . . . . 1 . . . . . . 1 . . . . . . . . . . 1 . . 5 . 4 . 5 Missiles Intercepted . | . . . . . . . . . . . . . . . . . . . . . . . . . . . . . . . . . . . . . . . Alert | -11 -10 -10 -9 -9 -9 -8 -8 -8 -7 -7 -7 -7 -7 -7 -6 -6 -6 -6 -6 -6 -5 -5 -5 -5 -5 -4 -4 -4 -4 -4 -4 -4 -3 -3 -3 -3 -2 -1 ------- Run | Scr Mat Min Mat Min Exi Min Mat Sto Fac Was Fac Low Low Dat Pro Fac Low Low Zio Dee Pro Fac Upp Upp Zhi Pro Fac Was Fac Upp Upp War Pro Res Qua Sec Res Acc Peak Influence 5306 | . 416 130 985 627 . 267 709 807 490 176 254 . . . . 474 . . . . . 330 . . . . 249 108 555 . . . . 1626 914 4471 4022 5306 Initial 2514 | . . 100 50 384 . . 104 299 366 149 102 . . . . 10 . . . . . 100 . . . . . 87 2 . . . . 141 914 299 2514 2412 Average 624 | . 238 108 385 411 . 79 267 542 260 159 80 . . . . 156 . . . . . 174 . . . . 141 46 290 . . . . 874 424 1435 3223 4215 Maximum Alert Level 5 | . 2 . 3 2 . 1 3 3 2 . 1 . . . . 2 . . . . . 1 . . . . 1 . 2 . . . . 5 3 5 5 5 Low Security (%) 34 | 100 24 100 19 . . 86 38 . 27 100 95 . . . . 79 . . . . . 57 . . . . 85 100 22 . . . . 13 12 21 . . Level 1 28 | . 67 . 34 52 . 13 43 17 60 . 4 . . . . 12 . . . . . 42 . . . . 14 . 55 . . . . 5 36 16 . . Level 2 19 | . 7 . 35 47 . . 16 70 12 . . . . . . 7 . . . . . . . . . . . . 22 . . . . 25 37 7 . . Level 3 6 | . . . 10 . . . 1 11 . . . . . . . . . . . . . . . . . . . . . . . . . 17 13 17 . . Level 4 3 | . . . . . . . . . . . . . . . . . . . . . . . . . . . . . . . . . . 30 . 10 . . Level 5 . | . . . . . . . . . . . . . . . . . . . . . . . . . . . . . . . . . . 8 . . 1 1 High Security . | . . . . . . . . . . . . . . . . . . . . . . . . . . . . . . . . . . . . . . . Max Security 7 | . . . . . . . . . . . . . . . . . . . . . . . . . . . . . . . . . . . . 26 98 98 Sterilizations 1 | . . . . . . . . . . . . . . . . . . . . . . . . . . . . . . . . . . . . 1 . . Squads Dispatched 145 | . 5 . 8 . . . 7 3 7 . 2 . . . . 9 . . . . 1 5 . . . . 2 . 10 . . . . 11 8 31 1 35 Investigation 16 | . 3 . 4 . . . 1 2 1 . . . . . . 1 . . . . . . . . . . . . 1 . . . . 2 . 1 . . Extermination 30 | . . . . . . . . . 2 . 1 . . . . 5 . . . . . 4 . . . . 1 . 4 . . . . 3 4 6 . . Reinforcement 28 | . 2 . 3 . . . 3 1 3 . 1 . . . . 2 . . . . . 1 . . . . . . 2 . . . . 3 1 3 1 2 Assault 61 | . . . 1 . . . . . 1 . . . . . . . . . . . 1 . . . . . 1 . . . . . . 3 3 21 . 30 Garrison 10 | . . . . . . . 3 . . . . . . . . 1 . . . . . . . . . . . . 3 . . . . . . . . 3 Intercept . | . . . . . . . . . . . . . . . . . . . . . . . . . . . . . . . . . . . . . . . Searches Triggered . | . . . . . . . . . . . . . . . . . . . . . . . . . . . . . . . . . . . . . . . Data Miner Redirects 9 | . . . . . . . . . . . . . . . . 1 . . . . . . . . . . 1 . 1 . . . . 4 1 1 . . Construction Impeded 4 | . . . . . . . 1 . . . . . . . . . . . . . . . . . . . . . 1 . . . . 2 . . . . Haulers Reinforced 7 | . . . . . . . . . . . . . . . . 1 . . . . . 1 . . . . . . 1 . . . . . 1 1 . 2 Active Scanning Responses . | . . . . . . . . . . . . . . . . . . . . . . . . . . . . . . . . . . . . . . . Cargo Convoy Interrupts 2 | . . . . . . . . . 1 . . . . . . . . . . . . . . . . . . . . . . . . 1 . . . . Stealth | -11 -10 -10 -9 -9 -9 -8 -8 -8 -7 -7 -7 -7 -7 -7 -6 -6 -6 -6 -6 -6 -5 -5 -5 -5 -5 -4 -4 -4 -4 -4 -4 -4 -3 -3 -3 -3 -2 -1 --------- Run | Scr Mat Min Mat Min Exi Min Mat Sto Fac Was Fac Low Low Dat Pro Fac Low Low Zio Dee Pro Fac Upp Upp Zhi Pro Fac Was Fac Upp Upp War Pro Res Qua Sec Res Acc Distress Signals 37 | . 3 . 5 . . . 3 3 2 . . . . . . 1 . . . . . 1 . . . 1 2 . 2 . . . . 6 . 4 2 2 Communications Jammed . | . . . . . . . . . . . . . . . . . . . . . . . . . . . . . . . . . . . . . . . Distress Signals . | . . . . . . . . . . . . . . . . . . . . . . . . . . . . . . . . . . . . . . . Times Spotted 1052 | . 28 9 65 13 . 13 44 35 28 6 11 11 2 . 11 48 7 7 . 52 21 27 8 . . 19 17 6 47 4 3 13 8 72 46 186 42 143 Peak Tracking Total 37 | . 7 8 5 4 . 6 6 5 4 6 6 7 1 . 6 5 4 7 . 37 9 3 5 . . 4 5 4 14 4 3 5 4 15 5 25 27 19 Tactical Retreats 46 | . 3 1 7 1 . 2 . . 1 . . 1 . . . 3 . . . . 1 4 1 . . . . . 2 2 . . . 2 2 5 7 1 Traps | -11 -10 -10 -9 -9 -9 -8 -8 -8 -7 -7 -7 -7 -7 -7 -6 -6 -6 -6 -6 -6 -5 -5 -5 -5 -5 -4 -4 -4 -4 -4 -4 -4 -3 -3 -3 -3 -2 -1 ------- Run | Scr Mat Min Mat Min Exi Min Mat Sto Fac Was Fac Low Low Dat Pro Fac Low Low Zio Dee Pro Fac Upp Upp Zhi Pro Fac Was Fac Upp Upp War Pro Res Qua Sec Res Acc Traps Triggered 18 | . 1 . 1 . . . . 2 1 . 2 . . . . 3 . . . . . . . . . 1 1 . . . . . . 2 2 2 . . Indirectly . | . . . . . . . . . . . . . . . . . . . . . . . . . . . . . . . . . . . . . . . Trap Hack Attempts . | . . . . . . . . . . . . . . . . . . . . . . . . . . . . . . . . . . . . . . . Triggered . | . . . . . . . . . . . . . . . . . . . . . . . . . . . . . . . . . . . . . . . Disarmed . | . . . . . . . . . . . . . . . . . . . . . . . . . . . . . . . . . . . . . . . Reprogrammed . | . . . . . . . . . . . . . . . . . . . . . . . . . . . . . . . . . . . . . . . Reused . | . . . . . . . . . . . . . . . . . . . . . . . . . . . . . . . . . . . . . . . Traps Extracted . | . . . . . . . . . . . . . . . . . . . . . . . . . . . . . . . . . . . . . . . Installed . | . . . . . . . . . . . . . . . . . . . . . . . . . . . . . . . . . . . . . . . Triggered 15 | . . . . . . . . . 1 . . . . . . . . . . . . . . . . . . . . . . 14 . . . . . . Machines | -11 -10 -10 -9 -9 -9 -8 -8 -8 -7 -7 -7 -7 -7 -7 -6 -6 -6 -6 -6 -6 -5 -5 -5 -5 -5 -4 -4 -4 -4 -4 -4 -4 -3 -3 -3 -3 -2 -1 ---------- Run | Scr Mat Min Mat Min Exi Min Mat Sto Fac Was Fac Low Low Dat Pro Fac Low Low Zio Dee Pro Fac Upp Upp Zhi Pro Fac Was Fac Upp Upp War Pro Res Qua Sec Res Acc Machines Disabled 81 | . . . 1 . . . 5 9 2 . . . . . . 3 . . . 2 . . . . . . 2 . 3 . . . . 6 7 33 2 6 Max in Single Turn 3 | . . . 1 . . . 3 2 1 . . . . . . 1 . . . 1 . . . . . . 1 . 1 . . . . 2 1 2 1 1 Garrison Access 6 | . . . . . . . . 1 2 . . . . . . . . . . . . . . . . . 1 . . . . . . . 1 1 . . Energy Cycler 2 | . . . . . . . . . . . . . . . . . . . . . . . . . . . . . . . . . . . . . . 2 Machines Sabotaged . | . . . . . . . . . . . . . . . . . . . . . . . . . . . . . . . . . . . . . . . Garrisons Compromised 1 | . . . . . . . . . 1 . . . . . . . . . . . . . . . . . . . . . . . . . . . . . Overloaded Fab Kills . | . . . . . . . . . . . . . . . . . . . . . . . . . . . . . . . . . . . . . . . Hacking | -11 -10 -10 -9 -9 -9 -8 -8 -8 -7 -7 -7 -7 -7 -7 -6 -6 -6 -6 -6 -6 -5 -5 -5 -5 -5 -4 -4 -4 -4 -4 -4 -4 -3 -3 -3 -3 -2 -1 --------- Run | Scr Mat Min Mat Min Exi Min Mat Sto Fac Was Fac Low Low Dat Pro Fac Low Low Zio Dee Pro Fac Upp Upp Zhi Pro Fac Was Fac Upp Upp War Pro Res Qua Sec Res Acc Machines Accessed 88 | . 7 . 7 . 1 . 8 5 7 . 1 . 1 4 1 4 . . . . . 2 . . 5 1 3 . 3 . . 2 . 1 13 12 . . Terminals 54 | . 5 . 5 . . . 6 2 4 . 1 . 1 . 1 3 . . . . . 1 . . . . 2 . 3 . . . . 1 10 9 . . Fabricators 1 | . . . . . . . . . . . . . . . . . . . . . . . . . . 1 . . . . . . . . . . . . Repair Stations 7 | . . . . . . . 1 1 2 . . . . . . 1 . . . . . 1 . . . . . . . . . . . . . 1 . . Recycling Units 6 | . 2 . 2 . . . 1 1 . . . . . . . . . . . . . . . . . . . . . . . . . . . . . . Scanalyzers 3 | . . . . . . . . . . . . . . . . . . . . . . . . . . . . . . . . . . . 2 1 . . Garrison Access 5 | . . . . . . . . 1 1 . . . . . . . . . . . . . . . . . 1 . . . . . . . 1 1 . . Total Hacks 217 | . 15 . 16 . 1 . 22 13 19 . 2 . 2 30 1 6 . . . . . 3 . . 18 1 4 . 7 . . 6 . 2 23 26 . . Successful 137 | . 7 . 4 . 1 . 13 10 7 . . . 2 30 1 3 . . . . . 2 . . 18 1 1 . 5 . . 6 . 1 16 9 . . Failed 80 | . 8 . 12 . . . 9 3 12 . 2 . . . . 3 . . . . . 1 . . . . 3 . 2 . . . . 1 7 17 . . Catastrophic 16 | . 1 . 2 . . . 2 . 3 . 1 . . . . 1 . . . . . . . . . . 2 . 1 . . . . . . 3 . . Database Lockouts . | . . . . . . . . . . . . . . . . . . . . . . . . . . . . . . . . . . . . . . . Manual 76 | . 14 . 14 . . . 6 4 7 . . . . . . 4 . . . . . . . . . . 1 . 7 . . 1 . . 6 12 . . Terminals 120 | . 13 . 14 . . . 18 7 9 . 2 . 2 . 1 5 . . . . . 1 . . . . 2 . 7 . . . . 2 17 20 . . Fabricators 1 | . . . . . . . . . . . . . . . . . . . . . . . . . . 1 . . . . . . . . . . . . Repair Stations 18 | . . . . . . . 2 3 9 . . . . . . 1 . . . . . 2 . . . . . . . . . . . . . 1 . . Recycling Units 8 | . 2 . 2 . . . 2 2 . . . . . . . . . . . . . . . . . . . . . . . . . . . . . . Scanalyzers 8 | . . . . . . . . . . . . . . . . . . . . . . . . . . . . . . . . . . . 5 3 . . Garrison Access 7 | . . . . . . . . 1 1 . . . . . . . . . . . . . . . . . 2 . . . . . . . 1 2 . . Terminal Hacks 107 | . 5 . 2 . 1 . 10 6 . . . . 2 30 1 3 . . . . . . . . 18 . 1 . 5 . . 6 . 1 12 4 . . Record 24 | . . . . . 1 . . . . . . . 2 11 1 . . . . . . . . . 6 . . . . . . . . . 3 . . . Part Schematic 18 | . 2 . . . . . 2 . . . . . . 10 . . . . . . . . . . 4 . . . . . . . . . . . . . Robot Schematic 6 | . . . . . . . . . . . . . . 6 . . . . . . . . . . . . . . . . . . . . . . . . Robot Analysis 6 | . 2 . . . . . . . . . . . . . . . . . . . . . . . 4 . . . . . . . . . . . . . Prototype ID Bank 13 | . . . . . . . . 1 . . . . . 3 . . . . . . . . . . 4 . . . . . . 5 . . . . . . Open Door 3 | . . . . . . . . . . . . . . . . . . . . . . . . . . . . . . . . 1 . . 1 1 . . Branch Access Points 7 | . . . 1 . . . 1 . . . . . . . . 1 . . . . . . . . . . 1 . 2 . . . . 1 . . . . Terminal Index 1 | . . . . . . . . 1 . . . . . . . . . . . . . . . . . . . . . . . . . . . . . . Alert Level 7 | . . . . . . . 2 1 . . . . . . . . . . . . . . . . . . . . 1 . . . . . 3 . . . Unreport Threat 9 | . . . . . . . 1 1 . . . . . . . . . . . . . . . . . . . . 2 . . . . . 4 1 . . Locate Traps 6 | . 1 . . . . . 2 . . . . . . . . 1 . . . . . . . . . . . . . . . . . . 1 1 . . Recall Investigation 1 | . . . . . . . . 1 . . . . . . . . . . . . . . . . . . . . . . . . . . . . . . Hauler Manifests 3 | . . . 1 . . . 1 1 . . . . . . . . . . . . . . . . . . . . . . . . . . . . . . Registered Components 2 | . . . . . . . 1 . . . . . . . . 1 . . . . . . . . . . . . . . . . . . . . . . Activate Exoskeleton 1 | . . . . . . . . . . . . . . . . . . . . . . . . . . . . . . . . . . . . 1 . . Fabricator Hacks 1 | . . . . . . . . . . . . . . . . . . . . . . . . . . 1 . . . . . . . . . . . . Build 1 | . . . . . . . . . . . . . . . . . . . . . . . . . . 1 . . . . . . . . . . . . Repair Station Hacks 12 | . . . . . . . 2 2 6 . . . . . . . . . . . . 2 . . . . . . . . . . . . . . . . Scan Component 6 | . . . . . . . 1 1 3 . . . . . . . . . . . . 1 . . . . . . . . . . . . . . . . Repair 6 | . . . . . . . 1 1 3 . . . . . . . . . . . . 1 . . . . . . . . . . . . . . . . Recycling Unit Hacks 1 | . . . . . . . 1 . . . . . . . . . . . . . . . . . . . . . . . . . . . . . . . Retrieve Components 1 | . . . . . . . 1 . . . . . . . . . . . . . . . . . . . . . . . . . . . . . . . Scanalyzer 6 | . . . . . . . . . . . . . . . . . . . . . . . . . . . . . . . . . . . 3 3 . . Insert Component 6 | . . . . . . . . . . . . . . . . . . . . . . . . . . . . . . . . . . . 3 3 . . Garrison Access Hacks 4 | . . . . . . . . 1 1 . . . . . . . . . . . . . . . . . . . . . . . . . 1 1 . . Seal Access 4 | . . . . . . . . 1 1 . . . . . . . . . . . . . . . . . . . . . . . . . 1 1 . . Unauthorized Hacks 6 | . 2 . 2 . . . . 1 . . . . . . . . . . . . . . . . . . . . . . . . . . . 1 . . Terminals 1 | . . . . . . . . . . . . . . . . . . . . . . . . . . . . . . . . . . . . 1 . . Operators 1 | . . . . . . . . . . . . . . . . . . . . . . . . . . . . . . . . . . . . 1 . . Fabricators . | . . . . . . . . . . . . . . . . . . . . . . . . . . . . . . . . . . . . . . . Repair Stations . | . . . . . . . . . . . . . . . . . . . . . . . . . . . . . . . . . . . . . . . Recycling Units 5 | . 2 . 2 . . . . 1 . . . . . . . . . . . . . . . . . . . . . . . . . . . . . . Tunnel 5 | . 2 . 2 . . . . 1 . . . . . . . . . . . . . . . . . . . . . . . . . . . . . . Scanalyzers . | . . . . . . . . . . . . . . . . . . . . . . . . . . . . . . . . . . . . . . . Garrison Access . | . . . . . . . . . . . . . . . . . . . . . . . . . . . . . . . . . . . . . . . Data Cores Recovered 2 | . . . . . . . . . . . . . . . . . . . . . . . . . . . . . 1 . . . . . . 1 . . Used 1 | . . . . . . . . . . . . . . . . . . . . . . . . . . . . . . . . . . . . 1 . . Hacking Detections 54 | . 5 . 5 . . . 6 3 4 . 1 . 1 . . 3 . . . . . 2 . . . 1 3 . 2 . . . . 1 7 10 . . Full Trace Events 7 | . . . 2 . . . 1 2 1 . . . . . . . . . . . . . . . . . . . . . . . . . . 1 . . Feedback Events . | . . . . . . . . . . . . . . . . . . . . . . . . . . . . . . . . . . . . . . . Feedback Blocked . | . . . . . . . . . . . . . . . . . . . . . . . . . . . . . . . . . . . . . . . Robot Schematics Acquired 6 | . . . . . . . . . . . . . . 6 . . . . . . . . . . . . . . . . . . . . . . . . Robots Built 1 | . . . . . . . . . . . . . . . . . . . . . . . . . . 1 . . . . . . . . . . . . Authchips . | . . . . . . . . . . . . . . . . . . . . . . . . . . . . . . . . . . . . . . . Time 93 | . . . . . . . . . . . . . . . . . . . . . . . . . . 93 . . . . . . . . . . . . Total Robot Build Rating 7 | . . . . . . . . . . . . . . . . . . . . . . . . . . 7 . . . . . . . . . . . . Part Schematics Acquired 19 | . 2 . . . . . . . . . . . . 10 . . . . . . . . . . 4 . . . . . . . . . . 3 . . Parts Built . | . . . . . . . . . . . . . . . . . . . . . . . . . . . . . . . . . . . . . . . Authchips . | . . . . . . . . . . . . . . . . . . . . . . . . . . . . . . . . . . . . . . . Time . | . . . . . . . . . . . . . . . . . . . . . . . . . . . . . . . . . . . . . . . Total Part Build Rating . | . . . . . . . . . . . . . . . . . . . . . . . . . . . . . . . . . . . . . . . Parts Repaired 6 | . . . . . . . 1 1 3 . . . . . . . . . . . . 1 . . . . . . . . . . . . . . . . Time 251 | . . . . . . . 38 38 95 . . . . . . . . . . . . 80 . . . . . . . . . . . . . . . . Parts Recycled . | . . . . . . . . . . . . . . . . . . . . . . . . . . . . . . . . . . . . . . . Recycled Matter . | . . . . . . . . . . . . . . . . . . . . . . . . . . . . . . . . . . . . . . . Retrieved Matter . | . . . . . . . . . . . . . . . . . . . . . . . . . . . . . . . . . . . . . . . Retrieved Components 10 | . . . . . . . 10 . . . . . . . . . . . . . . . . . . . . . . . . . . . . . . . Parts Scanalyzed . | . . . . . . . . . . . . . . . . . . . . . . . . . . . . . . . . . . . . . . . Part Schematics Acquired . | . . . . . . . . . . . . . . . . . . . . . . . . . . . . . . . . . . . . . . . Parts Damaged . | . . . . . . . . . . . . . . . . . . . . . . . . . . . . . . . . . . . . . . . Bothacking | -11 -10 -10 -9 -9 -9 -8 -8 -8 -7 -7 -7 -7 -7 -7 -6 -6 -6 -6 -6 -6 -5 -5 -5 -5 -5 -4 -4 -4 -4 -4 -4 -4 -3 -3 -3 -3 -2 -1 ------------ Run | Scr Mat Min Mat Min Exi Min Mat Sto Fac Was Fac Low Low Dat Pro Fac Low Low Zio Dee Pro Fac Upp Upp Zhi Pro Fac Was Fac Upp Upp War Pro Res Qua Sec Res Acc Used RIF Installer . | . . . . . . . . . . . . . . . . . . . . . . . . . . . . . . . . . . . . . . . Robots Hacked . | . . . . . . . . . . . . . . . . . . . . . . . . . . . . . . . . . . . . . . . Non-combat . | . . . . . . . . . . . . . . . . . . . . . . . . . . . . . . . . . . . . . . . Combat . | . . . . . . . . . . . . . . . . . . . . . . . . . . . . . . . . . . . . . . . Robot Hacks Applied . | . . . . . . . . . . . . . . . . . . . . . . . . . . . . . . . . . . . . . . . Relay Couplers Released 10 | . . . . . . . . . 2 . . . . . . . . . . . . . . . . . 2 . 3 . . . . . . . 3 . Machine Destruction 4 | . . . . . . . . . 2 . . . . . . . . . . . . . . . . . 2 . . . . . . . . . . . Programmers 6 | . . . . . . . . . . . . . . . . . . . . . . . . . . . . . 3 . . . . . . . 3 . Fabnet Peak Effective % . | . . . . . . . . . . . . . . . . . . . . . . . . . . . . . . . . . . . . . . . Robots Rewired 3 | . . . . . . . . . . . . . . . . . . . . . . . . . . . . . . . . 3 . . . . . . Allies Hacked . | . . . . . . . . . . . . . . . . . . . . . . . . . . . . . . . . . . . . . . . Hacks Repelled . | . . . . . . . . . . . . . . . . . . . . . . . . . . . . . . . . . . . . . . . Allies | -11 -10 -10 -9 -9 -9 -8 -8 -8 -7 -7 -7 -7 -7 -7 -6 -6 -6 -6 -6 -6 -5 -5 -5 -5 -5 -4 -4 -4 -4 -4 -4 -4 -3 -3 -3 -3 -2 -1 -------- Run | Scr Mat Min Mat Min Exi Min Mat Sto Fac Was Fac Low Low Dat Pro Fac Low Low Zio Dee Pro Fac Upp Upp Zhi Pro Fac Was Fac Upp Upp War Pro Res Qua Sec Res Acc Total Allies 41 | . . . . 4 . . . . . . . . . . 1 . . . 4 . 1 . . . . 1 . 19 3 . . 3 . . . 5 . . Largest Group 19 | . . . . 3 2 2 . . . . . . . . 1 . . . 4 4 1 1 . . . 1 1 19 18 . . 3 . . . 3 1 1 Highest-Rated Group 1433 | . . . . 40 32 32 . . . . . . . . 96 . . . 98 98 64 64 . . . 35 35 684 672 . . 170 . . . 1433 1195 1195 Highest-Rated Ally 1195 | . . . . 31 16 16 . . . . . . . . 96 . . . 28 28 64 64 . . . 35 35 50 46 . . 65 . . . 1195 1195 1195 Total Orders 2 | . . . . . . . . . . . . . . . . . . . . . . . . . . 1 1 . . . . . . . . . . . AID 2 | . . . . . . . . . . . . . . . . . . . . . . . . . . 1 1 . . . . . . . . . . . Ally Attacks 548 | . . . . 17 . 12 . . . . . . . . 9 . . . . 27 1 6 . . . . . . 162 . . 17 . . . 138 57 102 Total Damage 34834 | . . . . 172 . 113 . . . . . . . . 283 . . . . 854 56 181 . . . . . . 2909 . . 307 . . . 11960 7162 10837 Kills 160 | . . . . 7 . 1 . . . . . . . . 3 . . . . 12 2 1 . . . . . . 18 . . 3 . . . 39 27 47 Allies Corrupted 1 | . . . . . . . . . . . . . . . . . . . . . . . . . . . . . . . . 1 . . . . . . Allies Melted 1 | . . . . . . . . . . . . . . . . . . . . . . . . . . . . . . . . . . . . . 1 . Field Lobotomies 5 | . . . . . . . . . . . . . . . . . . . . . 1 . . . . . . . . . . . . . . 4 . . Intel | -11 -10 -10 -9 -9 -9 -8 -8 -8 -7 -7 -7 -7 -7 -7 -6 -6 -6 -6 -6 -6 -5 -5 -5 -5 -5 -4 -4 -4 -4 -4 -4 -4 -3 -3 -3 -3 -2 -1 ------- Run | Scr Mat Min Mat Min Exi Min Mat Sto Fac Was Fac Low Low Dat Pro Fac Low Low Zio Dee Pro Fac Upp Upp Zhi Pro Fac Was Fac Upp Upp War Pro Res Qua Sec Res Acc Robot Analysis Total 6 | . 2 . . . . . . . . . . . . . . . . . . . . . . . 4 . . . . . . . . . . . . . Derelict Logs Recovered 16 | . . 1 . 1 . . . . . . . 2 2 . 1 . 1 . 2 . 3 . . 1 . 1 . . . . 1 . . . . . . . Drone Launches . | . . . . . . . . . . . . . . . . . . . . . . . . . . . . . . . . . . . . . . . Drone Recoveries . | . . . . . . . . . . . . . . . . . . . . . . . . . . . . . . . . . . . . . . . Decoded 0b10 Intel 10 | . . . . . . . . . . . . . . . . . . . . . . 10 . . . . . . . . . . . . . . . . Items 6 | . . . . . . . . . . . . . . . . . . . . . . 6 . . . . . . . . . . . . . . . . Machines 1 | . . . . . . . . . . . . . . . . . . . . . . 1 . . . . . . . . . . . . . . . . Guards 3 | . . . . . . . . . . . . . . . . . . . . . . 3 . . . . . . . . . . . . . . . . Exploration | -11 -10 -10 -9 -9 -9 -8 -8 -8 -7 -7 -7 -7 -7 -7 -6 -6 -6 -6 -6 -6 -5 -5 -5 -5 -5 -4 -4 -4 -4 -4 -4 -4 -3 -3 -3 -3 -2 -1 ------------- Run | Scr Mat Min Mat Min Exi Min Mat Sto Fac Was Fac Low Low Dat Pro Fac Low Low Zio Dee Pro Fac Upp Upp Zhi Pro Fac Was Fac Upp Upp War Pro Res Qua Sec Res Acc Turns Passed 43945 | 80 960 387 2588 1626 790 646 1845 1547 2056 189 1049 309 698 87 565 2918 743 485 1172 2163 586 1414 361 523 302 1435 638 854 1516 349 380 1652 288 1512 3055 5020 562 595 Spaces Moved 22564 | 45 480 219 957 659 329 248 846 647 941 120 800 246 551 75 402 1496 457 320 806 1378 400 694 169 277 153 611 373 445 825 223 269 1055 205 741 1236 2430 228 208 Core 71 | 2 . . . . . . . . . . . . . . . 1 . . . . . . . . . . . . . . . . . . . . . 68 Treads 4765 | 43 480 219 957 659 329 248 846 647 333 . . . . . . 4 . . . . . . . . . . . . . . . . . . . . . . Legs 9948 | . . . . . . . . . . . . . . . . 25 . . . . . 543 169 277 153 611 373 445 825 223 269 1055 205 741 1236 2430 228 140 Wheels 7780 | . . . . . . . . . 608 120 800 246 551 75 402 1466 457 320 806 1378 400 151 . . . . . . . . . . . . . . . . Hover . | . . . . . . . . . . . . . . . . . . . . . . . . . . . . . . . . . . . . . . . Flight . | . . . . . . . . . . . . . . . . . . . . . . . . . . . . . . . . . . . . . . . Fastest Speed 50 | 50 160 160 160 240 240 160 160 167 160 100 100 115 115 115 115 115 145 145 130 115 115 140 185 185 135 135 135 135 130 135 135 125 125 125 175 117 172 50 Average Speed 161 | 155 160 160 226 240 240 239 175 189 190 145 113 115 117 115 119 150 145 145 142 138 119 170 185 185 139 176 136 136 142 135 135 131 125 146 186 173 179 135 Slowest Speed 550 | 160 160 160 240 240 240 240 246 247 247 160 130 115 130 115 130 550 145 145 145 145 130 210 185 185 185 185 186 186 186 135 135 176 125 240 246 177 180 230 Overloaded Moves . | . . . . . . . . . . . . . . . . . . . . . . . . . . . . . . . . . . . . . . . Propulsion Burnouts . | . . . . . . . . . . . . . . . . . . . . . . . . . . . . . . . . . . . . . . . Robots Hopped . | . . . . . . . . . . . . . . . . . . . . . . . . . . . . . . . . . . . . . . . Cave-ins Triggered 2 | . . . . . . . . . . . . . . . . . . . . . . . . . . . . 1 . . . . . . . . . 1 Teleports 2 | . . . . . . . . . . . . . . . . . . . . . . . . . . . . . . . . . . . 1 . . 1 Exploration Rate (%) 57 | 3 92 69 84 99 69 66 88 93 34 72 27 51 61 68 60 38 66 58 84 90 61 17 41 56 60 69 13 87 28 39 49 86 46 27 90 95 5 9 Regions Visited 38 Branch Regions 24 Pre-discovered Areas 14 | . 2 1 2 . . . . 1 . . . 2 . 1 . . . . 1 . . . . 1 3 . . . . . . . . . . . . . Known Exits Taken 9 | . . . 1 . . 1 1 . . . . . . . 1 1 . . . . . 1 . . . 1 . . 1 . . . . 1 . . . . Unknown Exits Taken 25 | 1 1 1 . 1 1 . . 1 . . 1 1 1 1 . . 1 1 1 1 1 . 1 1 1 . . . . 1 1 1 1 . 1 1 1 . Scrap Searched 28 | . . . . 1 . 1 . . . . . 4 2 . . . 4 2 3 . 3 . 1 . . 3 . . . 1 1 . 2 . . . . . Spaces Dug 420 | . . . 11 . . 20 2 27 1 . . 10 9 . 3 8 3 30 3 . 10 4 4 6 . 3 7 10 8 56 3 . 36 51 13 79 . 3 Terrain Destroyed 2051 | . . . 72 31 . 79 154 106 12 43 . 59 31 . 3 39 19 151 3 107 236 11 13 6 . 32 14 19 59 57 79 14 80 227 42 154 21 78 Melee 11 | . . . . . . . . 4 1 . . . . . 3 . . . 3 . . . . . . . . . . . . . . . . . . . Projectile 411 | . . . 11 4 . 4 9 9 . . . . . . . 39 19 1 . 6 10 11 13 6 . 11 14 19 34 5 3 1 1 18 42 70 6 45 AOE 1629 | . . . 61 27 . 75 145 93 11 43 . 59 31 . . . . 150 . 101 226 . . . . 21 . . 25 52 76 13 79 209 . 84 15 33 Terrain Rammed . | . . . . . . . . . . . . . . . . . . . . . . . . . . . . . . . . . . . . . . . Walls Destroyed . | . . . . . . . . . . . . . . . . . . . . . . . . . . . . . . . . . . . . . . . Machines Disabled . | . . . . . . . . . . . . . . . . . . . . . . . . . . . . . . . . . . . . . . . Actions | -11 -10 -10 -9 -9 -9 -8 -8 -8 -7 -7 -7 -7 -7 -7 -6 -6 -6 -6 -6 -6 -5 -5 -5 -5 -5 -4 -4 -4 -4 -4 -4 -4 -3 -3 -3 -3 -2 -1 --------- Run | Scr Mat Min Mat Min Exi Min Mat Sto Fac Was Fac Low Low Dat Pro Fac Low Low Zio Dee Pro Fac Upp Upp Zhi Pro Fac Was Fac Upp Upp War Pro Res Qua Sec Res Acc Total 27204 | 52 581 238 1191 680 330 272 1064 820 1100 126 889 260 589 76 451 1858 499 328 829 1513 461 869 186 281 245 876 447 605 1023 251 278 1313 222 1043 1818 2860 336 344 Wait 1640 | . 34 4 48 7 2 . 64 61 69 . 13 1 14 . 17 95 16 . 6 . 12 78 . . 77 211 37 114 62 10 . . . 164 363 27 34 . Move 22527 | 44 479 218 956 658 328 247 845 646 941 119 799 245 550 74 401 1495 456 319 805 1377 399 693 168 276 152 610 373 443 824 222 268 1054 204 740 1235 2429 227 208 Hop . | . . . . . . . . . . . . . . . . . . . . . . . . . . . . . . . . . . . . . . . Pick Up 215 | 2 10 2 25 . . . 12 6 11 . 16 . 2 . 3 24 1 1 5 14 . 8 . . 2 1 . 2 4 . . 5 . 7 22 24 3 3 Fast Attach 174 | 6 2 . 4 . . . 5 2 3 . 10 1 3 . . 21 2 . 2 8 3 6 . . 3 . . . 8 . . 7 . 8 12 45 9 4 Attach 121 | . 1 3 8 . . 4 9 1 3 1 3 . 3 . 2 17 . 1 1 5 4 3 1 . . 1 1 2 3 . . 2 . 3 5 25 2 7 Detach 154 | . 2 . 2 . . . 4 1 3 1 1 . 1 . . 10 1 . . 2 1 11 1 . 8 1 3 . 15 3 1 12 2 21 20 23 3 1 Swap 201 | . . . 16 2 . 1 23 15 5 1 3 1 7 . 4 6 2 2 1 18 10 2 . 1 . 6 . . 4 5 3 1 2 16 14 23 2 5 Drop 216 | . 2 . 18 . . . 14 7 9 . 3 1 . 2 1 17 2 . 6 21 . 15 . . 3 . . . 7 1 . 9 . 7 32 26 7 6 Fire 1657 | . 51 11 114 13 . 20 87 74 55 4 40 11 9 . 17 144 19 5 . 67 32 53 16 3 . 46 33 43 96 10 6 10 14 77 106 238 36 97 Melee 41 | . . . . . . . . 5 1 . . . . . 6 26 . . 3 . . . . . . . . . . . . . . . . . . . Ram 4 | . . . . . . . . . . . 1 . . . . 3 . . . . . . . . . . . . . . . . . . . . . . Kick . | . . . . . . . . . . . . . . . . . . . . . . . . . . . . . . . . . . . . . . . Crush 1 | . . . . . . . 1 . . . . . . . . . . . . . . . . . . . . . . . . . . . . . . . Escape Stasis 38 | . . . . . . . . 2 . . . . . . . . . . . . . . . . . . . 1 . . . . . . 9 . 13 13 Rewire 215 | . . . . . . . . . . . . . . . . . . . . 1 . . . 1 . . . . . . . 213 . . . . . . Trap . | . . . . . . . . . . . . . . . . . . . . . . . . . . . . . . . . . . . . . . . Miscellaneous . | . . . . . . . . . . . . . . . . . . . . . . . . . . . . . . . . . . . . . . . Route ------- -11/Scrapyard -10/Materials (discovered 4 exits: *Mat x3 / *Min) -10/Mines -9/Materials (discovered 4 exits: *Mat x3 / *Min) -9/Mines (discovered 3 exits: *Mat x2 / *Exi) -9/Exiles -8/Mines -8/Materials (discovered 5 exits: *Fac x3 / *Sto x2) -8/Storage (discovered 2 exits: *Fac / Rec) -7/Factory (discovered 3 exits: *Fac x2 / [*Low]) -7/Waste -7/Factory (discovered 2 exits: *Fac / [*Low]) -7/Lower Caves -7/Lower Caves -7/Data Miner -6/Proximity Caves -6/Factory (discovered 5 exits: *Fac / *Low x2 / *Ext x2) -6/Lower Caves -6/Lower Caves (discovered 2 exits: *Fac / [*Zio]) -6/Zion (discovered 2 exits: [*Dee] / [*Pro]) -6/Deep Caves -5/Proximity Caves -5/Factory (discovered 4 exits: *Fac x2 / *Upp x2) -5/Upper Caves -5/Upper Caves (discovered 2 exits: *Fac / *Zhi) -5/Zhirov -4/Proximity Caves -4/Factory (discovered 2 exits: Upp x2) -4/Waste -4/Factory (discovered 2 exits: *Upp x2) -4/Upper Caves -4/Upper Caves (discovered 2 exits: *Res / *War) -4/Warlord -3/Proximity Caves -3/Research (discovered 3 exits: Arm / *Qua x2) -3/Quarantine (discovered 2 exits: [*Res] / *Sec) -3/Section 7 -2/Research -1/Access History --------- Turn | Location | Event 50 | -11/Scrapyard | Discovered new exit (range 12) 81 | -11/Scrapyard | Entered Materials 310 | -10/Materials | Build established: Mutant 443 | -10/Materials | Discovered new exit (range 16) 657 | -10/Materials | Discovered new exit (range 16) 940 | -10/Materials | Discovered new exit (range 16) 1034 | -10/Materials | Discovered new exit (range 5) 1041 | -10/Materials | Entered Mines 1048 | -10/Mines | Received a Rocket Launcher from a helpful Derelict 1170 | -10/Mines | Assembled infested the area 1175 | -10/Mines | Assisted by a Guerilla fighting off Assembled 1345 | -10/Mines | Found a damaged Exp. Sensor Array with a note attached 1348 | -10/Mines | Found Prototype Device 1362 | -10/Mines | Learned location of 1 exit from Materials 1415 | -10/Mines | Discovered new exit (range 8) 1416 | -10/Mines | Learned location of Storage (-8) 1428 | -10/Mines | Entered Materials 1428 | -9/Materials | Evolved 2 slots: Propulsion x1, Utility x1 1429 | -9/Materials | Identified exit to Materials 1747 | -9/Materials | Discovered new exit (range 13) 2708 | -9/Materials | Discovered exit to Materials (range 9) 3589 | -9/Materials | Discovered exit to Materials (range 12) 3599 | -9/Materials | Identified exit to Mines 3828 | -9/Materials | First assault squad dispatched 4016 | -9/Materials | Entered Mines 4019 | -9/Mines | Received a Mining Laser from a helpful Derelict 4097 | -9/Mines | Discovered exit to Materials (range 2) 4558 | -9/Mines | Discovered exit to Materials (range 11) 4788 | -9/Mines | Found a hidden stash of uninstalled traps 5091 | -9/Mines | Assisted by bots powering up and referring to "LRC-V3" 5630 | -9/Mines | Deemed a non-threat by the Exiles lab entrance 5630 | -9/Mines | Discovered new exit (range 5) 5642 | -9/Mines | Entered Exiles 5642 | -9/Exiles | Found Exiles lab abandoned 5642 | -9/Exiles | Accompanied by 2 allies 6401 | -9/Exiles | Discovered new exit (range 14) 6432 | -9/Exiles | Entered Mines 6432 | -8/Mines | Accompanied by 2 allies 6871 | -8/Mines | Discovered exit to Materials (range 11) 6883 | -8/Mines | Core integrity fell below 50% 7027 | -8/Mines | Lost 3 parts (1p1n1w) 7078 | -8/Mines | Entered Materials 7078 | -8/Materials | Evolved 2 slots: Propulsion x1, Utility x1 7093 | -8/Materials | Identified exit to Storage 7304 | -8/Materials | Build established: Scavenger-Mutant 7833 | -8/Materials | Discovered new exit (range 16) 7982 | -8/Materials | Discovered new exit (range 16) 8150 | -8/Materials | Repaired Arm. Treads? 8564 | -8/Materials | Garrison activated, responded to threat 8585 | -8/Materials | Discovered new exit (range 14) 8653 | -8/Materials | Destroyed 8 combat bots 8666 | -8/Materials | Found Prototype Device 8720 | -8/Materials | Destroyed 8 combat bots 8923 | -8/Materials | Entered Storage 8924 | -8/Storage | Identified exit to Recycling 9024 | -8/Storage | Build established: Mutant 9659 | -8/Storage | Core integrity fell below 50% 9808 | -8/Storage | Discovered new exit (range 15) 10008 | -8/Storage | Repaired Arm. Treads 10470 | -8/Storage | Entered Factory 10470 | -7/Factory | Evolved 2 slots: Power x1, Utility x1 10781 | -7/Factory | Build established: Scavenger-Mutant 10893 | -7/Factory | Repaired Ion Cannon? 10993 | -7/Factory | Repaired Ion Cannon 11156 | -7/Factory | Discovered new exit (range 8) 11428 | -7/Factory | Build established: Mutant 11567 | -7/Factory | Discovered new exit (range 14) 11638 | -7/Factory | Repaired Arm. Treads 12301 | -7/Factory | Discovered new exit (range 10) 12336 | -7/Factory | Cargo convoy interrupted 12500 | -7/Factory | Identified exit to Factory 12526 | -7/Factory | Sucked down chute 12526 | -7/Factory | Entered Waste 12541 | -7/Waste | EMP discharged 12547 | -7/Waste | Spotted C-40 Crusher 12550 | -7/Waste | Spotted C-40 Crusher 12595 | -7/Waste | Spotted C-40 Crusher 12607 | -7/Waste | Spotted C-40 Crusher 12641 | -7/Waste | EMP discharged 12641 | -7/Waste | System corruption reached 10% 12676 | -7/Waste | Crushed by Compactor (1 part destroyed, 2 dropped) 12676 | -7/Waste | Spotted C-40 Crusher 12680 | -7/Waste | Crushed by Compactor (1 part destroyed, 1 dropped) 12685 | -7/Waste | Spotted C-40 Crusher 12688 | -7/Waste | Crushed by Compactor (0 parts destroyed, 1 dropped) 12704 | -7/Waste | Discovered new exit (range 12) 12715 | -7/Waste | Entered Factory 12719 | -7/Factory | Lost 3 parts (1p1n1w) 13033 | -7/Factory | Discovered exit to Factory (range 7) 13542 | -7/Factory | Discovered new exit (range 5) 13764 | -7/Factory | Entered Lower Caves 13788 | -7/Lower Caves | Spotted B-75 Beast 13922 | -7/Lower Caves | Learned location of Zion (-6) 14026 | -7/Lower Caves | Discovered new exit (range 11) 14041 | -7/Lower Caves | Destroyed 8 combat bots 14073 | -7/Lower Caves | Entered another Lower Caves area 14186 | -7/Lower Caves | Learned Factory security intel 14273 | -7/Lower Caves | Learned 4 Factory zone layouts 14480 | -7/Lower Caves | Found Alien Artifact 14480 | -7/Lower Caves | Identified Core Expander 14480 | -7/Lower Caves | Installed Core Expander, added new Utility slot 14617 | -7/Lower Caves | Discovered new exit (range 10) 14650 | -7/Lower Caves | Encountered a Warlord checkpoint 14771 | -7/Lower Caves | Entered Data Miner 14772 | -7/Data Miner | Discovered new exit (range 6) 14794 | -7/Data Miner | Met Data Miner 14824 | -7/Data Miner | Learned location of Section 7 (-3) 14824 | -7/Data Miner | Acquired the access code to Warlord's prototype stash 14832 | -7/Data Miner | Received God Mode back door access code from Data Miner 14858 | -7/Data Miner | Entered Proximity Caves 14887 | -6/Proximity Caves | Escorted by Enhanced Grunt 14948 | -6/Proximity Caves | Build established: Scavenger-Mutant 15088 | -6/Proximity Caves | Attracted the attention of an 0b10 checkpoint 15133 | -6/Proximity Caves | Lost 4 parts (2p1n1u) 15357 | -6/Proximity Caves | Learned Factory terminal intel 15384 | -6/Proximity Caves | Build established: Mutant 15408 | -6/Proximity Caves | Discovered exit to Factory (range 7) 15423 | -6/Proximity Caves | Entered Factory 15423 | -6/Factory | Evolved 2 slots: Utility x2 15426 | -6/Factory | Loaded intel: 28 terminal locations 15524 | -6/Factory | Lost 5 parts (3n1u1w) 15623 | -6/Factory | Lost 3 parts (1p1u1w) 15746 | -6/Factory | Incoming investigation squad redirected 15837 | -6/Factory | Build established: Scavenger-Mutant 16390 | -6/Factory | Lost 6 parts (1p2n2u1w) 16847 | -6/Factory | Discovered new exit (range 15) 17111 | -6/Factory | Discovered new exit (range 16) 17275 | -6/Factory | Discovered new exit (range 16) 17520 | -6/Factory | Build established: Mutant 18043 | -6/Factory | Identified exit to Lower Caves 18043 | -6/Factory | Identified exit to Extension 18152 | -6/Factory | Found Prototype Processor 18157 | -6/Factory | Found Scatter Rocket Array 18314 | -6/Factory | Garrison activated, responded to threat 18341 | -6/Factory | Entered Lower Caves 18344 | -6/Lower Caves | Build established: Skirmisher 18349 | -6/Lower Caves | Learned Factory emergency access door positions 18967 | -6/Lower Caves | Discovered new exit (range 16) 19084 | -6/Lower Caves | Entered another Lower Caves area 19090 | -6/Lower Caves | Core integrity fell below 50% 19097 | -6/Lower Caves | Discovered new exit (range 13) 19126 | -6/Lower Caves | Destroyed 7 combat bots 19285 | -6/Lower Caves | Encountered a Warlord checkpoint 19554 | -6/Lower Caves | Discovered new exit (range 12) 19569 | -6/Lower Caves | Entered Zion 19601 | -6/Zion | Found Prototype Special Weapon 19607 | -6/Zion | Found Prototype Special Weapon 19651 | -6/Zion | System corruption cleaned by Quarantine Array 19722 | -6/Zion | Learned Factory trap positions 19733 | -6/Zion | Discovered new exit (range 15) 19790 | -6/Zion | Found Prototype Special Weapon 20194 | -6/Zion | Gained Derelict followers 20408 | -6/Zion | Learned 4 Factory zone layouts 20679 | -6/Zion | Found GAL Module 20706 | -6/Zion | Discovered new exit (range 15) 20728 | -6/Zion | Saw the warning signs outside the Deep Caves entrance 20741 | -6/Zion | Entered Deep Caves 20741 | -6/Deep Caves | Accompanied by 4 allies 20807 | -6/Deep Caves | Found Surveybot 24 Scanner 20810 | -6/Deep Caves | Identified Exp. Targeting Computer 20815 | -6/Deep Caves | Found Surveybot 24 Chip 20931 | -6/Deep Caves | Identified RU-N14's Throwing Claymores (x3) 20949 | -6/Deep Caves | Attacked by Z-Imprinter 20959 | -6/Deep Caves | Destroyed Z-Imprinter 21077 | -6/Deep Caves | Z-Facility disabled 21105 | -6/Deep Caves | Found Prototype Protection 21105 | -6/Deep Caves | Identified Zio. Weapon Casing 21131 | -6/Deep Caves | Found Zio. Weapon Casing 21152 | -6/Deep Caves | Build established: Mutant 21170 | -6/Deep Caves | Found Zio. Weapon Casing 21925 | -6/Deep Caves | Discovered new exit (range 6) 22036 | -6/Deep Caves | Found Prototype Protection 22068 | -6/Deep Caves | Found Prototype Protection 22082 | -6/Deep Caves | Found Zio. Weapon Casing 22514 | -6/Deep Caves | Spotted as-61122 22523 | -6/Deep Caves | Destroyed as-61122 22529 | -6/Deep Caves | Exposed GOLEM chamber 22549 | -6/Deep Caves | Lost 3 parts (2n1u) 22589 | -6/Deep Caves | Triggered Deep Caves wall 22593 | -6/Deep Caves | Spotted AS-95890 22597 | -6/Deep Caves | Destroyed AS-22633 22609 | -6/Deep Caves | Destroyed AS-95890 22630 | -6/Deep Caves | Destroyed 37 combat bots 22650 | -6/Deep Caves | Spotted as-32267 22665 | -6/Deep Caves | Destroyed as-32267 22679 | -6/Deep Caves | Found Prototype Special Weapon 22698 | -6/Deep Caves | Found Corrupted Unknown Device 22744 | -6/Deep Caves | Found Unknown Device 22756 | -6/Deep Caves | Found Unknown Device 22890 | -6/Deep Caves | Identified Field Lobotomy Kit 22904 | -6/Deep Caves | Entered Proximity Caves 23282 | -5/Proximity Caves | System corruption reached 10% 23407 | -5/Proximity Caves | Attracted the attention of an 0b10 outpost 23446 | -5/Proximity Caves | Assimilated Y-72 Warden with FLK Orb 23458 | -5/Proximity Caves | Destroyed 7 combat bots 23476 | -5/Proximity Caves | Lost 7 parts (1p2n3u1w) 23476 | -5/Proximity Caves | Discovered new exit (range 10) 23484 | -5/Proximity Caves | Learned location of 1 exit from Factory 23489 | -5/Proximity Caves | Identified GOLEM Unit (x3) 23490 | -5/Proximity Caves | Entered Factory 23490 | -5/Factory | Accompanied by 1 ally 23490 | -5/Factory | Evolved 2 slots: Utility x2 23491 | -5/Factory | Identified exit to Upper Caves 23494 | -5/Factory | Loaded intel: 101 trap records 23955 | -5/Factory | Repaired Scatter Rocket Array 24046 | -5/Factory | Build established: Golem 24296 | -5/Factory | Discovered new exit (range 11) 24552 | -5/Factory | Discovered new exit (range 6) 24904 | -5/Factory | Entered Upper Caves 25214 | -5/Upper Caves | Discovered new exit (range 24) 25258 | -5/Upper Caves | Encountered a Warlord checkpoint 25265 | -5/Upper Caves | Entered another Upper Caves area 25272 | -5/Upper Caves | Discovered new exit (range 16) 25691 | -5/Upper Caves | Learned location of Armory (-3) 25743 | -5/Upper Caves | Discovered new exit (range 22) 25757 | -5/Upper Caves | Encountered a Warlord checkpoint 25788 | -5/Upper Caves | Entered Zhirov 25788 | -5/Zhirov | Discovered new exit (range 4) 25821 | -5/Zhirov | Met Zhirov 25850 | -5/Zhirov | Learned location of Testing (-2) 25850 | -5/Zhirov | Learned location of Command (-1) 25869 | -5/Zhirov | Zhirov requested help retrieving the SGEMP Prototype 25891 | -5/Zhirov | Found Alien Artifact 25907 | -5/Zhirov | Found Alien Artifact 25907 | -5/Zhirov | Identified Integrated Reactor 25907 | -5/Zhirov | Installed Integrated Reactor, increased core energy generation (+10) 26090 | -5/Zhirov | Entered Proximity Caves 26203 | -4/Proximity Caves | Attracted the attention of an 0b10 checkpoint 26241 | -4/Proximity Caves | Spotted B-86 Titan 26645 | -4/Proximity Caves | Identified exit to Factory 26851 | -4/Proximity Caves | Snuck into a huge 0b10 base via the rear entrance 26961 | -4/Proximity Caves | Derelicts attacked a huge 0b10 base 27203 | -4/Proximity Caves | Spotted B-86 Titan 27229 | -4/Proximity Caves | Destroyed B-86 Titan 27396 | -4/Proximity Caves | Fabricated M-36 Artificer? 27525 | -4/Proximity Caves | Entered Factory 27525 | -4/Factory | Accompanied by 1 ally 27525 | -4/Factory | Evolved 2 slots: Utility x2 27717 | -4/Factory | Discovered new exit (range 22) 27867 | -4/Factory | Incoming assault squad redirected 28101 | -4/Factory | Identified exit to Upper Caves 28163 | -4/Factory | Sucked down chute 28163 | -4/Factory | Entered Waste 28322 | -4/Waste | Spotted C-40 Crusher 28409 | -4/Waste | Spotted C-40 Crusher 28433 | -4/Waste | Spotted C-40 Crusher 28433 | -4/Waste | Spotted C-40 Crusher 28460 | -4/Waste | Spotted C-40 Crusher 28468 | -4/Waste | Destroyed C-40 Crusher 28494 | -4/Waste | Crushed by Compactor (0 parts destroyed, 1 dropped) 28501 | -4/Waste | Crushed by falling debris 28505 | -4/Waste | Spotted C-40 Crusher 28515 | -4/Waste | Destroyed C-40 Crusher 28519 | -4/Waste | Crushed by Compactor (0 parts destroyed, 1 dropped) 28563 | -4/Waste | Destroyed C-40 Crusher 28623 | -4/Waste | Destroyed C-40 Crusher 28633 | -4/Waste | Destroyed C-40 Crusher 28670 | -4/Waste | Destroyed C-40 Crusher 28756 | -4/Waste | Warlord forces began an assault 28871 | -4/Waste | Discovered new exit (range 12) 29017 | -4/Waste | Entered Factory 29017 | -4/Factory | Accompanied by 16 allies 29070 | -4/Factory | Incoming investigation squad redirected 29189 | -4/Factory | Allied Derelicts emerged from ambush trap array 29287 | -4/Factory | Garrison activated, responded to threat 29300 | -4/Factory | Spotted B-86 Titan 29461 | -4/Factory | Lost 3 parts (1n2u) 29573 | -4/Factory | Lost 4 parts (2u2w) 30533 | -4/Factory | Entered Upper Caves 30862 | -4/Upper Caves | Discovered new exit (range 15) 30882 | -4/Upper Caves | Entered another Upper Caves area 30897 | -4/Upper Caves | Discovered new exit (range 12) 30951 | -4/Upper Caves | Spotted B-86 Titan 31089 | -4/Upper Caves | Learned Research terminal intel 31246 | -4/Upper Caves | Discovered new exit (range 14) 31262 | -4/Upper Caves | Entered Warlord 31308 | -4/Warlord | System corruption cleaned by Quarantine Array 31612 | -4/Warlord | Found Prototype Special Weapon 31616 | -4/Warlord | Found Prototype Special Weapon 31617 | -4/Warlord | Identified RU-N14's Throwing Claymores v3 (x2) 31621 | -4/Warlord | Found RU-N14's Throwing Claymores v3 32126 | -4/Warlord | Warlord's base attacked by MAIN.C 32283 | -4/Warlord | Met Warlord 32300 | -4/Warlord | Opened Warlord's prototype stash 32342 | -4/Warlord | Found Prototype Device 32342 | -4/Warlord | Identified Exp. Focal Shield 32348 | -4/Warlord | Found Prototype Hackware 32356 | -4/Warlord | Found Prototype Reactor 32476 | -4/Warlord | Warlord forces counterattacked 32616 | -4/Warlord | Met EX-DEC 32702 | -4/Warlord | Spotted Executioner 32703 | -4/Warlord | Destroyed Executioner 32738 | -4/Warlord | Spotted Striker 32742 | -4/Warlord | Core integrity fell below 50% 32746 | -4/Warlord | Destroyed Striker 32767 | -4/Warlord | Destroyed 8 combat bots 32770 | -4/Warlord | Spotted B-90 Cyclops 32771 | -4/Warlord | Spotted Striker 32801 | -4/Warlord | Warlord base infiltrated, sounded retreat 32904 | -4/Warlord | Discovered new exit (range 9) 32914 | -4/Warlord | Entered Proximity Caves 32923 | -3/Proximity Caves | Spotted B-86 Titan 32967 | -3/Proximity Caves | Destroyed B-86 Titan 33181 | -3/Proximity Caves | Discovered new exit (range 17) 33202 | -3/Proximity Caves | Entered Research 33202 | -3/Research | Evolved 2 slots: Utility x2 33203 | -3/Research | Identified exit to Armory 33204 | -3/Research | Loaded intel: 25 terminal locations 33537 | -3/Research | Destroyed 7 combat bots 33620 | -3/Research | Incoming investigation squad redirected 33667 | -3/Research | Incoming investigation squad redirected 33877 | -3/Research | Spotted B-86 Titan 33952 | -3/Research | First assault squad dispatched 33975 | -3/Research | Incoming assault squad redirected 34013 | -3/Research | Identified System Mapper 34014 | -3/Research | Identified exit to Quarantine 34073 | -3/Research | Cargo convoy interrupted 34074 | -3/Research | Spotted Executioner 34094 | -3/Research | Destroyed Executioner 34115 | -3/Research | Destroyed 13 combat bots 34161 | -3/Research | Destroyed 8 combat bots 34163 | -3/Research | Found Prototype Device 34163 | -3/Research | Identified Exp. Thermal Shield 34167 | -3/Research | Lost 9 parts (1p3n4u1w) 34167 | -3/Research | Found Prototype Device 34167 | -3/Research | Identified Exp. ECM Suite 34185 | -3/Research | Found Prototype Energy Cannon 34185 | -3/Research | Identified Exp. Thermic Cannon 34297 | -3/Research | Build established: Hacker-Golem 34454 | -3/Research | Found Exp. Thermal Shield 34482 | -3/Research | Incoming assault squad redirected 34714 | -3/Research | Entered Quarantine 35553 | -3/Quarantine | Found Alien Artifact 35600 | -3/Quarantine | Identified Phase Redirector 35600 | -3/Quarantine | Identified Transdimensional Reconstructor 35616 | -3/Quarantine | Discovered new exit (range 12) 35966 | -3/Quarantine | Found Alien Artifact 36170 | -3/Quarantine | Identified Subatomic Replicator 36450 | -3/Quarantine | Found Alien Energy Cannon 36661 | -3/Quarantine | Build established: Golem 36716 | -3/Quarantine | Found Unknown Launcher 36716 | -3/Quarantine | Identified Gamma Bomb Array 36784 | -3/Quarantine | Met incapacitated Sigix Warrior 36784 | -3/Quarantine | Lockdown squad dispatched 36797 | -3/Quarantine | Acquired the access code to the Sigix quarantine chamber 36801 | -3/Quarantine | Unlocked Sigix quarantine chamber 36821 | -3/Quarantine | Warped through subspace 36839 | -3/Quarantine | Core integrity fell below 50% 36844 | -3/Quarantine | Spotted Lightning 36854 | -3/Quarantine | Spotted Lightning 36871 | -3/Quarantine | Spotted Lightning 36955 | -3/Quarantine | Destroyed Lightning 36980 | -3/Quarantine | Found Prototype Energy Cannon 36995 | -3/Quarantine | Destroyed Lightning 37046 | -3/Quarantine | Found Prototype Device 37046 | -3/Quarantine | Identified Exp. Phase Shifter 37049 | -3/Quarantine | Identified Vortex Chain Reactor 37050 | -3/Quarantine | Found Exp. Targeting Computer 37058 | -3/Quarantine | Lost 3 parts (1p1u1w) 37075 | -3/Quarantine | Found Corrupted Prototype Energy Cannon 37464 | -3/Quarantine | First assault squad dispatched 37633 | -3/Quarantine | Spotted Fortress 37738 | -3/Quarantine | Incoming assault squad redirected 37760 | -3/Quarantine | Discovered new exit (range 6) 37769 | -3/Quarantine | Entered Section 7 37923 | -3/Section 7 | Build established: Scavenger-Golem 38418 | -3/Section 7 | Incoming investigation squad redirected 38476 | -3/Section 7 | Found Alien Artifact 38609 | -3/Section 7 | Identified Integrity Redistributor 38636 | -3/Section 7 | Used Subatomic Replicator to replicate Vortex Chain Reactor 38877 | -3/Section 7 | Found Integrated Reactor 38877 | -3/Section 7 | Installed Integrated Reactor, increased core energy generation (+10) 39027 | -3/Section 7 | Found Alien Artifact 39157 | -3/Section 7 | Identified Integrated Mediator 39157 | -3/Section 7 | Installed Integrated Mediator, increased core attachment efficiency. 39201 | -3/Section 7 | System corruption reached 10% 39325 | -3/Section 7 | Spotted S7 Guard 39328 | -3/Section 7 | Destroyed S7 Guard 39369 | -3/Section 7 | Found Integrated Reactor 39369 | -3/Section 7 | Installed Integrated Reactor, increased core energy generation (+10) 39448 | -3/Section 7 | Spotted B-86 Titan 39559 | -3/Section 7 | Discovered new exit (range 24) 39663 | -3/Section 7 | Spotted S7 Guard 39680 | -3/Section 7 | Destroyed S7 Guard 39752 | -3/Section 7 | Identified EMDS (x2) 39773 | -3/Section 7 | Build established: Scavenger-Mutant 39773 | -3/Section 7 | Destroyed B-86 Titan 39868 | -3/Section 7 | Found Alien Artifact 40019 | -3/Section 7 | First assault squad dispatched 40048 | -3/Section 7 | Found Alien Artifact 40212 | -3/Section 7 | Lost 5 parts (4u1w) 40271 | -3/Section 7 | Identified Core Regenerator 40271 | -3/Section 7 | Used Core Regenerator, restored core integrity (+325) 40803 | -3/Section 7 | Found Alien Artifact 40803 | -3/Section 7 | Identified Integrated Thermoelectric Network 40803 | -3/Section 7 | Installed Integrated Thermoelectric Network, gained heat-energy exchange potential 41014 | -3/Section 7 | Assimilated H-71 Marshal with FLK Orb 41128 | -3/Section 7 | Spotted Executioner 41131 | -3/Section 7 | Spotted Executioner 41149 | -3/Section 7 | Assimilated Executioner with FLK Orb 41155 | -3/Section 7 | Assimilated Executioner with FLK Orb 41212 | -3/Section 7 | Found Alien Artifact 41212 | -3/Section 7 | Identified Terrabomb 41212 | -3/Section 7 | Used Terrabomb 41216 | -3/Section 7 | Found Terrabomb 41237 | -3/Section 7 | Found Transdimensional Reconstructor 41291 | -3/Section 7 | Spotted Striker 41291 | -3/Section 7 | Spotted Striker 41324 | -3/Section 7 | Spotted Executioner 41339 | -3/Section 7 | Spotted Executioner 41350 | -3/Section 7 | Assimilated Executioner with FLK Orb 41352 | -3/Section 7 | Allies destroyed Executioner 41365 | -3/Section 7 | Found Exp. Targeting Computer 41371 | -3/Section 7 | Found Prototype Processor 41371 | -3/Section 7 | Identified Exp. Core Analyzer 41456 | -3/Section 7 | Activated Sigix Exoskeleton 41456 | -3/Section 7 | Unable to understand communications from Sigix Warrior 41529 | -3/Section 7 | Spotted B-99 Colossus 41545 | -3/Section 7 | Allies destroyed B-99 Colossus 41578 | -3/Section 7 | Destroyed 17 combat bots 41633 | -3/Section 7 | Found Core Expander 41633 | -3/Section 7 | Installed Core Expander, added new Utility slot 41667 | -3/Section 7 | Spotted Investigator 41669 | -3/Section 7 | Spotted Striker 41669 | -3/Section 7 | Spotted Executioner 41672 | -3/Section 7 | Destroyed Investigator 41676 | -3/Section 7 | Destroyed Executioner 41684 | -3/Section 7 | Destroyed Striker 41709 | -3/Section 7 | Destroyed 17 combat bots 41754 | -3/Section 7 | Found Alien Artifact 41754 | -3/Section 7 | Identified LRC Storage 41754 | -3/Section 7 | Installed LRC Storage, increased inventory capacity (+2) 41796 | -3/Section 7 | Destroyed Executioner 41807 | -3/Section 7 | Spotted Striker 41808 | -3/Section 7 | Spotted Executioner 41809 | -3/Section 7 | Destroyed Striker 41814 | -3/Section 7 | Allies destroyed Executioner 41823 | -3/Section 7 | Spotted Executioner 41824 | -3/Section 7 | Allies destroyed Executioner 41830 | -3/Section 7 | Spotted Striker 41831 | -3/Section 7 | Lost 3 parts (1p2u) 41836 | -3/Section 7 | Allies destroyed Striker 41836 | -3/Section 7 | Found Exp. Core Analyzer 41839 | -3/Section 7 | Sterilization system engaged 41839 | -3/Section 7 | Non-combat units ordered to evacuate 41840 | -3/Section 7 | Unable to understand communications from Sigix Warrior 41843 | -3/Section 7 | Destroyed Executioner 41864 | -3/Section 7 | Destroyed 20 combat bots 41889 | -3/Section 7 | Found Integrated Reactor 41889 | -3/Section 7 | Installed Integrated Reactor, increased core energy generation (+10) 41892 | -3/Section 7 | Found Integrated Reactor 41892 | -3/Section 7 | Installed Integrated Reactor, increased core energy generation (+10) 41895 | -3/Section 7 | Found Integrated Reactor 41895 | -3/Section 7 | Installed Integrated Reactor, increased core energy generation (+10) 41939 | -3/Section 7 | Combat units ordered to evacuate 42036 | -3/Section 7 | Destroyed Striker 42039 | -3/Section 7 | Allies destroyed Striker 42139 | -3/Section 7 | Ambient heat levels rising (+10) 42140 | -3/Section 7 | Spotted Striker 42140 | -3/Section 7 | Spotted Striker 42157 | -3/Section 7 | Allies destroyed Striker 42164 | -3/Section 7 | Destroyed Striker 42208 | -3/Section 7 | Found Alien Energy Gun 42210 | -3/Section 7 | Found Alien Energy Gun 42211 | -3/Section 7 | Identified Sigix Sheargun (x2) 42289 | -3/Section 7 | Ambient heat levels rising (+10) 42363 | -3/Section 7 | Found Prototype Ballistic Gun 42363 | -3/Section 7 | Identified Multirail 42439 | -3/Section 7 | Ambient heat levels rising (+10) 42589 | -3/Section 7 | Ambient heat levels rising (+10) 42630 | -3/Section 7 | Spotted S7 Guard 42641 | -3/Section 7 | Found Alien Artifact 42645 | -3/Section 7 | Allies destroyed S7 Guard 42659 | -3/Section 7 | Found Prototype Protection 42659 | -3/Section 7 | Identified Hvy. Regenerative Plating 42739 | -3/Section 7 | Ambient heat levels rising (+10) 42789 | -3/Section 7 | Entered Research 42789 | -2/Research | Accompanied by 1 ally (Sigix Warrior) 42789 | -2/Research | Warlord forces began assault on 0b10 42789 | -2/Research | Evolved 2 slots: Propulsion x1, Weapon x1 42899 | -2/Research | Research machine network offline 42922 | -2/Research | Discovered new exit (range 8) 42989 | -2/Research | Borebot progress halted 43080 | -2/Research | Spotted Investigator 43086 | -2/Research | Destroyed Investigator 43092 | -2/Research | Unable to understand communications from Sigix Warrior 43102 | -2/Research | Warlord destroyed during the assault 43117 | -2/Research | Borebot progress halted 43126 | -2/Research | Found Prototype Launcher 43126 | -2/Research | Identified Containment Facilitator 43218 | -2/Research | Spotted Striker 43230 | -2/Research | Allies destroyed Striker 43351 | -2/Research | Entered Access 43351 | -1/Access | Accompanied by 1 ally (Sigix Warrior) 43351 | -1/Access | Evolved 1 slot: Propulsion x1 43447 | -1/Access | Energy Cycler disabled 43476 | -1/Access | Unable to understand communications from Sigix Warrior 43492 | -1/Access | Garrison activated, responded to threat 43529 | -1/Access | Lost 3 parts (1p1u1w) 43533 | -1/Access | Destroyed 10 combat bots 43636 | -1/Access | Spotted Executioner 43636 | -1/Access | Spotted Striker 43640 | -1/Access | Destroyed Striker 43640 | -1/Access | Allies destroyed Executioner 43649 | -1/Access | Crushed by falling debris 43652 | -1/Access | Spotted Executioner 43656 | -1/Access | Unable to understand communications from Sigix Warrior 43663 | -1/Access | Allies destroyed Executioner 43696 | -1/Access | Destroyed 14 combat bots 43697 | -1/Access | Spotted Striker 43701 | -1/Access | Spotted Striker 43709 | -1/Access | Allies destroyed Striker 43719 | -1/Access | Destroyed Striker 43735 | -1/Access | Scanned by Researcher 43737 | -1/Access | Warped through subspace 43841 | -1/Access | Spotted Executioner 43841 | -1/Access | Spotted Executioner 43841 | -1/Access | Spotted Executioner 43841 | -1/Access | Spotted Striker 43841 | -1/Access | Spotted Executioner 43848 | -1/Access | System corruption reached 10% 43869 | -1/Access | Destroyed Striker 43875 | -1/Access | Destroyed Executioner 43879 | -1/Access | Spotted Striker 43879 | -1/Access | Spotted Striker 43884 | -1/Access | Identified Core Cannon 43885 | -1/Access | Spotted Executioner 43885 | -1/Access | Spotted Executioner 43888 | -1/Access | Destroyed Executioner 43891 | -1/Access | Destroyed Executioner 43891 | -1/Access | Destroyed Executioner 43893 | -1/Access | Destroyed Executioner 43897 | -1/Access | Destroyed Striker 43910 | -1/Access | Core integrity fell below 50% 43918 | -1/Access | Destroyed 8 combat bots 43924 | -1/Access | Spotted Striker 43936 | -1/Access | Core integrity fell below 20% 43946 | -1/Access | Destroyed by H-88 Terminator with Heavy Machine Gun Last Messages --------------- 43933_ Knocked back. 43934_ Acquired 4 matter. 43935_ C-30 ARC bursts open, deploying its payload. 43935_ H-88 Terminator unfolds itself. 43935_ Slug penetrates Wall. 43935_ Penetrated by Slug. 43935_ Slug penetrates Wall. 43935_ Penetrated by Slug. 43939_ P-80 Master resets P-80 Master, system corruption cleaned. 43939_ Penetrated by Slug. 43941_ K-01 Serf collects debris. 43941_ Penetrated by Slug. 43941_ Slug penetrates Sealed Freight Elevator. 43942_ Penetrated by Slug. 43942_ Myomer Leg destroyed. 43944_ Centrium Leg destroyed. 43944_ K-01 Serf collects debris. [Achievement: 50k Club] [Achievement: Torch] [Achievement: Rambo] Map ----- +----------------------------------------------------+ | ?????????????????????????????????????????????????? | | ?????????????????????????????????????????????????? | | ?????????????????????????????????????????????????? | | ?????????????????????????????????????????????????? | | ?????????????????????????????????????????????????? | | ?????????????????????????????????????????????????? | | ?????????????????????????????????????????????????? | | ???????????????????????????????????????????????? | | ??????????????????????????????????????????????? | | ?????????????????????????????????????????????? | | ????????????????????????????????????????????? | | ############################???############# | | " ## ?! #???# | | " ## !! #???# | | %%"*[ ## ? #???# "" | | "%%[%= ## #???# """ * | | =%%%%!=]] ## """"" #???# T" | | [%==%%![]!*= ## """"" #???# "" | | ! %!=!!=%! #" """" #???# "" | | ??????#!%!%!=!% #" """" #???# | | ??#=!%% % ## """" #???# | | # % % #" """ ###?# | | " ! % =! % #" # ### | | " =%= * ## ] ; ## | | """%!#"!#!=;; ;# # # ;;;;; ;;;;#"""""###"# | | * !!u%[*A! [ k @ K #? | | !%! =!%!%|!% % %## | | = %[!!%[! % ! [%[ # | | " !!!![ * [ [ !%! " | | "%" !=! % ! !hh!%* !!! # | | " %!= = # | | % *=! %|!= " # | | ###""" ######### ## #### % =// "%" # | | # # #% %% = % " | | = # # % %[= %% | | ?+ + " # %=*%% % = [ !% | | ??# # """ ==%! %*==![%% %%%/= %# | | ???# ?# """ != [=%[ =%! %!%=![%![ | | ????# ?# """ =*%%!=[%[ !=/=*%=[ | | ?????# ?# = %=%*[! #=*!= =% | | ?????# ??# [#[[= # !* | | ?????# ??############### # [[ %! | | ?????# ????????????????# # %%![!= | | ?????# ?????????????????# # [= ! % | | ???????? ?????????????????# ! # %!%=! | | ???????????????????????????##### ### # ## !/ % | | ??????????????????????????????# # # ##=## !#= | | ???????????????????????????????# =% % %= | | ??????????????????????????????? [ % != # | | ???????????????????????????????# = | +----------------------------------------------------+ Best States ------------- Heat Dissipation 122 Coolant Potential 120 Energy Generation 135 Energy Capacity 2900 Matter Stores 300 Matter Capacity 600 Sight Range 23 Robot Scan Range 15 Terrain Scan Range 24 Terrain Scan Density 2010 Power Amplification 40 Additional Mass Support 20 Corruption Containment 8 Corruption Block 15 Armor Coverage 1200 Resistance: KI 30 Resistance: TH 30 Resistance: EX 15 Resistance: EM 15 Resistance: I 15 Resistance: S 15 Resistance: P 15 Weapon Shielding 100 Phase Shifting 20 Evasion (%) 69 Targeting Accuracy 24 Core Analysis 12 Recoil Reduction 4 Particle Charging 25 Offensive Hacking 20 Item Schematics ----------------- Hcp. Storage Unit | -10/Materials | Hacked Huge Storage Unit | -10/Materials | Hacked Combat Drone Bay | -7/Data Miner | Free Lgt. Regenerative Plating | -7/Data Miner | Free Cld. Aerolev Unit | -7/Data Miner | Free Thermal Defense Suite | -7/Data Miner | Free Imp. Heavy Laser | -7/Data Miner | Free Linear Gravjet | -7/Data Miner | Free Imp. Coolant Injector | -7/Data Miner | Free Adv. Plasma Cannon | -7/Data Miner | Free Wave Gun | -7/Data Miner | Free Adv. Trap Scanner | -7/Data Miner | Free Assault Drone Bay | -5/Zhirov | Free Exp. Heat Sink | -5/Zhirov | Free Exp. Optical Array | -5/Zhirov | Free Imp. Arc Thrower | -5/Zhirov | Free Hvy. Antimatter Reactor | -3/Section 7 | Archive Prc. Phase Gun | -3/Section 7 | Archive Enh. Armored Medium Treads | -3/Section 7 | Archive Robot Schematics ------------------ G-47 Trooper | -7/Data Miner | Free B-48 Gladiator | -7/Data Miner | Free H-55 Commando | -7/Data Miner | Free Y-54 Guardian | -7/Data Miner | Free S-27 Virus | -7/Data Miner | Free M-22 Extractor | -7/Data Miner | Free Fabricated ------------ M-36 Artificer | x1 | -4/Proximity Caves | Preloaded Alien Tech Used ----------------- Core Expander Integrated Reactor Transdimensional Reconstructor Subatomic Replicator Integrated Mediator Core Regenerator Integrated Thermoelectric Network Terrabomb LRC Storage Sigix Sheargun Core Cannon Achievements -------------- 50k Club Can't Touch This Equal Opportunity Bot Everyone Must Die Rambo Torch Challenges ------------ None Game ------ Seed FactorySmallArmor Manual? 0 Play Time 05:37:54 Cumulative 374.9 hours Start 2022.04.28 @ 14:53:05 End 2022.04.29 @ 21:35:57 Sessions 7 Manual Loads 0 Difficulty Rogue Special Mode None Game No. 523 Rogue 523 Adventurer 0 Explorer 0 Win Type - Total 6 Types 4/0/1/1/0/0/0/0/0 Lore% 84 Gallery% 86 Achievement% 69 Wizard Run 0 Options --------- ASCII 0 Keyboard 1 Movement Numpad Keybinds 0 Fullscreen 2 Font 24/Smallcaps Map View 76x50 Tactical HUD 1 Map Filters NONE Filters NONE Steam 1 RUN: 8abb6551-8748-4835-83d2-523844d24838